Workbook

Sheet DOCU_Chart
B2: DocuSign (DOCU) Valuation Summary
B4: Valuation date | C4: 2024-04-09
B5: Current share price | C5: =DOCU_DCF!C4 -> 58.48
B8: Data for graph | J8: Inputs
B9: Methodology | F9: Low | G9: Dif. | H9: High | J9: Low | K9: High | M9: Current share price
B10: ="Public Comps with EV/Sales range "&TEXT(J10,"0.0x")&"-"&TEXT(K10,"0.0x") -> Public Comps with EV/Sales range 2.3x-10.3x | F10: =DOCU_Comps!D29 -> 33.29069086 | G10: =H10-F10 -> 99.90791648 | H10: =DOCU_Comps!D30 -> 133.1986073 | J10: =DOCU_Comps!H29 -> 2.289297051 | K10: =DOCU_Comps!H30 -> 10.28732511 | M10: =$C$5 -> 58.48
B11: ="Public Comps w/ Price-to-Earnings range "&TEXT(J11,"0.0x")&"-"&TEXT(K11,"0.0x") -> Public Comps w/ Price-to-Earnings range 13.9x-31.5x | F11: =DOCU_Comps!D35 -> 44.9837082 | G11: =H11-F11 -> 56.91023867 | H11: =DOCU_Comps!D36 -> 101.8939469 | J11: =DOCU_Comps!N35 -> 13.92684464 | K11: =DOCU_Comps!N36 -> 31.54611358 | M11: =$C$5 -> 58.48
B12: ="DCF w/ perpetuity growth range "&TEXT(J12,"0.0%")&"-"&TEXT(K12,"0.0%") -> DCF w/ perpetuity growth range 0.5%-5.0% | F12: =DOCU_DCF!I183 -> 31.48764477 | G12: 22.81755418 | H12: =DOCU_DCF!I192 -> 54.30519895 | J12: =DOCU_DCF!D183 -> 0.005 | K12: =DOCU_DCF!D192 -> 0.05 | M12: 58.48
B13: ="DCF w/ Exit multiple range "&TEXT(J13,"0.0x")&"-"&TEXT(K13,"0.0x") -> DCF w/ Exit multiple range 20.4x-30.4x | F13: =DOCU_DCF!C175 -> 55.25560964 | G13: 21.26897559 | H13: =DOCU_DCF!M175 -> 76.52458523 | J13: =DOCU_DCF!C174 -> 20.4 | K13: =DOCU_DCF!M174 -> 30.4 | M13: 58.48
B14: 52 week high-low | F14: 38.11 | G14: 26.65 | H14: 64.76 | M14: 58.48

Sheet Possible_Comps
B2: Sector | C2: Application Software
B3: Industry | C3: Software
B5: Source | C5: Peers
B6: Proxy Statement | C6: Autodesk Okta Snowflake Workday CoStar Group Paycom Software Splunk Zendesk Crowdstrike Holdings RingCentral The Trade Desk Zoom Video Communications Dropbox ServiceNow Twilio HubSpot Shopify Veeva Systems
B7: DOCU 10K (comp) | C7: Adobe
B8: DOCU 10K (partners) | C8: Google Microsoft Oracle Salesforce SAP ServiceNow
B9: Industry (SIC code: 7370,7372.7373) | C9: 614 firms
B10: Seeking Alpha | C10: Procore Technologies Aspen Technology Dynatrace Open Text Corp Informatica
B11: Mergent | C11: Apple Inc Alphabet Inc Microsoft Corporation International Business Machines Corp Intel Corp HP Inc Oracle Corp Broadcom Inc (DE) Salesforce Inc Block Inc Baker Hughes Holdings LLC Adobe Inc DXC Technology Co Intuit Inc Schein (Henry) Inc | D11: Insight Enterprises Inc. Rockwell Automation, Inc. ServiceNow Inc DoorDash Inc Electronic Arts, Inc. Palo Alto Networks, Inc Vertiv Holdings Co CACI International Inc Roper Technologies Inc Broadridge Financial Solutions Inc
B12: Capital IQ | C12: Datadog, Inc HubSpot, Inc RingCentral, Inc. Salesforce, Inc Palantir Technologies, Inc Dynatrace Inc AppLoving Corp. Snowflake Inc Splunk Inc Zoom Video Communications, Inc
B13: Morningstar | C13: Adobe Salesforce Zoom Video Communications
B14: Financial Times | C14: Unity Software Inc F5 Inc Informatica Inc Amdocs Ltd Twilio Inc Paycom Software Inc Procore Technologies Inc Grab Holdings Ltd UiPath Inc Toast Inc Dynatrace Inc Aspen Technology Inc
B15: ValuEngine | C15: Grab Holdings Elastic NV Duolingo Inc Procore Tech

Sheet Selecting_Comps
H1: Proxy Statements | J1: 10K
B2: List of Possible Competitors | C2: Ticker | D2: Source | E2: Business Description | F2: Exchange | G2: Include (Y/N) | H2: Listed by DOCU | I2: Lists DOCU | J2: Lists DOCU | K2: Signature | L2: Direct | M2: Consumer | N2: Enterprise | O2: International | P2: LTM Gross Margin % | Q2: LTM EBITDA Margin % | R2: LTM EBIT Margin % | S2: LTM Net Income Margin % | T2: LTM Total Revenues, 1 Yr Growth % | U2: LTM Total Debt/Capital % | V2: LTM SG&A Margin % | W2: LTM R&D Margin | X2: Est. Annual Revenue Growth - 2 Yr % (Capital IQ) | Y2: LTM Total Revenues, 5 Yr CAGR % | Z2: LTM Total Revenues, 3 Yr CAGR % | AA2: LTM Total Revenues, 5 Yr CAGR % | AB2: LTM Total Revenue
B3: Salesforce, Inc. (NYSE:CRM) | C3: CRM | D3: 10K (partner), Capital IQ, Mergent, Morningstar | E3: Salesforce, Inc. provides Customer Relationship Management (CRM) technology that brings companies and customers together worldwide. The company’s service includes sales to store data, monitor leads and progress, forecast opportunities, gain insights through analytics and artificial intelligence, and deliver quotes, contracts, and invoices; and service that enables companies to deliver trusted and highly personalized customer support at scale. In addition, its platform offering comprise a flexible platform that enables companies of various sizes, locations, and industries to build business workflow and apps with customer; online learning platform that allows anyone to learn in-demand Salesforce skills; and Slack, an intelligent productivity platform. The company’s marketing services enables companies to plan, personalize, automate, and optimize customer marketing journey, connecting interaction, and connected products; and commerce services, which empowers shopping experience across various customer touchpoint, such as mobile, web, social, and stores and provides click-to-code tools that offers customers to build and deploy solutions. Further, its analytics offering includes Tableau, an end-to-end analytics solution for range of enterprise use cases and intelligent analytics with AI models, spot trends, predict outcomes, creates summaries, timely recommendations, and take action from any device; and integration service including MuleSoft, which provides building blocks to deliver end-to-end and connected experiences. Additionally, the company provides data cloud, a hyperscale data engine native to Salesforce; vertical services to meet the needs of customers in industries, such as financial services, healthcare and life sciences, manufacturing and automotive and government; and offers salesforce starter for small and medium-sized businesses. Salesforce, Inc. was incorporated in 1999 and is headquartered in San Francisco, California. | F3: NYSE | G3: Y | H3: =IF(IFERROR(SEARCH("Proxy",D3),0)>0,"Y","N") -> N | I3: N | J3: N | K3: =IFERROR(IF(SEARCH(K$2,$E3)>0,"Y","N"),"N") -> N | L3: N | M3: N | N3: Y | O3: N | P3: 0.755 | Q3: 0.265 | R3: 0.172 | S3: 0.1187 | T3: 0.1118 | U3: 0.1853 | V3: 0.4421 | W3: 0.1618900077 | X3: 0.097 | Y3: 0.0069 | Z3: 0.179 | AA3: 0.179 | AB3: 34857
B4: RingCentral, Inc. (NYSE:RNG) | C4: RNG | D4: Capital IQ, Proxy | E4: RingCentral, Inc., together with its subsidiaries, provides cloud communications, video meetings, collaboration, and contact center software-as-a-service solutions worldwide. The company’s products include RingCentral Message Video Phone that provides a unified experience for communication and collaboration across multiple modes, including HD voice, video, SMS, messaging and collaboration, conferencing, online meetings, and fax; RingCentral Contact Center, a collaborative contact center solution that delivers AI-powered omnichannel and workforce engagement solutions with integrated RingCentral MVP; and RingCX, an AI-powered contact center that a native delivers omnichannel experience. It provides RingCentral Video, a video meeting service that includes the company’s RCV video and team messaging capabilities; offers video and audio conferencing, team messaging, file sharing, contact, task, and calendar management, as well as pre-meeting, in-meeting, and post-meeting capabilities. In addition, the company offers RingCentral Professional Services, which include consultation, UCaaS and CCaaS implementation, VoIP phone system adoption, configuring custom workflows, customer and user onboarding, ongoing support, advanced support, managed services, and more. It serves a range of industries, including financial services, education, healthcare, legal services, real estate, retail, technology, insurance, construction, hospitality, state and local government, and others. It sells its products to enterprise customers, as well as small and medium-sized businesses through resellers and distributors, partners, and global service providers. RingCentral, Inc. was incorporated in 1999 and is headquartered in Belmont, California. | F4: NYSE | G4: Y | H4: Y | I4: Y | J4: N | K4: N | L4: N | M4: N | N4: Y | O4: N | P4: 0.698 | Q4: 0.025 | R4: -0.081 | S4: -0.075 | T4: 0.1077 | U4: 1.2344 | V4: 0.6293 | W4: 0.1524927352 | X4: 0.083 | Y4: 0.0468 | Z4: 0.23 | AA4: 0.23 | AB4: 2202.4
B5: Splunk Inc. | C5: Subsidiary of Cisco Systems | D5: Capital IQ, Proxy | E5: Splunk Inc., together with its subsidiaries, develops and markets cloud services and licensed software solutions in the United States and internationally. The company offers unified security and observability platform, including Splunk Security that helps security leaders fortify their organization’s digital resilience by mitigating cyber risk and meeting compliance requirements; and Splunk Observability, which provides visibility across the full stack of infrastructure, applications, and the digital customer experience. It also provides application programming interfaces, software development kits, and other interfaces that enables its network of third-party developers, partners, and customers to build content, including pre-built data inputs, workflows, searches, reports, alerts, custom dashboards, flexible user interface components, custom data visualizations, and integration actions and methods that configures and extends its solutions to accommodate specific use cases. In addition, the company offers adoption and implementation, education, and customer support services. It sells its offerings directly through field and inside sales, and indirectly through various routes to market with various partners. Splunk Inc. was incorporated in 2003 and is headquartered in San Francisco, California. As of March 18, 2024, Splunk Inc. operates as a subsidiary of Cisco Systems, Inc. | F5: Subsidiary | G5: N | H5: Y | I5: N | J5: N | K5: N | L5: Y | M5: N | N5: N | O5: Y | P5: 0.798 | Q5: 0.105 | R5: 0.084 | S5: 0.0626 | T5: 0.1538 | U5: 0.8149 | V5: 0.4961 | W5: 0.2239135592 | X5: 0.115 | Y5: 0.0887 | Z5: 0.237 | AA5: 0.237 | AB5: 4215.6
B6: HubSpot, Inc. (NYSE:HUBS) | C6: HUBS | D6: Capital IQ, Proxy | E6: HubSpot, Inc., together with its subsidiaries, provides a cloud-based customer relationship management (CRM) platform for businesses in the Americas, Europe, and the Asia Pacific. The company’s CRM platform includes Marketing Hub, a toolset for marketing automation and email, social media, SEO, and reporting and analytics; Sales Hub offers email templates and tracking, conversations and live chat, meeting and call scheduling, lead and website visit alerts, lead scoring, sales automation, pipeline management, quoting, forecasting, and reporting; Service Hub, a service software designed to help businesses manage, respond, and connect with customers; and Content Management Systems Hub enables businesses to create new and edit existing web content. It offers Operations Hub, which is designed to unify customer data, automate business processes, data cleanup, and provide customer insights and connections; and Commerce Hub, a B2B commerce suite. In addition, the company provides professional services to educate and train customers on how to utilize its CRM platform; and customer success, as well as phone and/or email and chat-based support services. It serves mid-market business-to-business companies. The company was incorporated in 2005 and is headquartered in Cambridge, Massachusetts. | F6: NYSE | G6: N | H6: Y | I6: Y | J6: N | K6: N | L6: N | M6: N | N6: N | O6: N | P6: 0.841 | Q6: -0.037 | R6: -0.05 | S6: -0.0812 | T6: 0.2538 | U6: 0.3737 | V6: 0.6058 | W6: 0.3057552299 | X6: 0.184 | Y6: 0.0977 | Z6: 0.35 | AA6: 0.35 | AB6: 2170.2
B7: Palantir Technologies Inc. (NYSE:PLTR) | C7: PLTR | D7: Capital IQ | E7: Palantir Technologies Inc. builds and deploys software platforms for the intelligence community to assist in counterterrorism investigations and operations in the United States, the United Kingdom, and internationally. The company provides Palantir Gotham, a software platform which enables users to identify patterns hidden deep within datasets, ranging from signals intelligence sources to reports from confidential informants, as well as facilitates the handoff between analysts and operational users, helping operators plan and execute real-world responses to threats that have been identified within the platform. It also offers Palantir Foundry, a platform that transforms the ways organizations operate by creating a central operating system for their data; and allows individual users to integrate and analyze the data they need in one place. In addition, it provides Palantir Apollo, a software that delivers software and updates across the business, as well as enables customers to deploy their software virtually in any environment; and Palantir Artificial Intelligence Platform (AIP) that provides unified access to open-source, self-hosted, and commercial large language models (LLM) that can transform structured and unstructured data into LLM-understandable objects and can turn organizations’ actions and processes into tools for humans and LLM-driven agents. The company was incorporated in 2003 and is headquartered in Denver, Colorado. | F7: NYSE | G7: N | H7: N | I7: N | J7: N | K7: N | L7: N | M7: N | N7: N | O7: Y | P7: 0.806 | Q7: 0.069 | R7: 0.054 | S7: 0.0943 | T7: 0.1675 | U7: 0.0605 | V7: 0.5705 | W7: 0.1818516854 | X7: 0.204 | Y7: 0.0738 | Z7: 0.267 | AA7: 0.267 | AB7: 2225
B8: Datadog, Inc. (NasdaqGS:DDOG) | C8: DDOG | D8: Capital IQ | E8: Datadog, Inc. operates an observability and security platform for cloud applications in North America and internationally. The company’s products comprise infrastructure and application performance monitoring, log management, digital experience monitoring, continuous profiler, database monitoring, data streams and universal service monitoring, network monitoring, incident management, workflow automation, observability pipelines, cloud cost and cloud security management, application security management, cloud SIEM, sensitive data scanner, and CI visibility. Datadog, Inc. was incorporated in 2010 and is headquartered in New York, New York. | F8: NASDAQ | G8: N | H8: N | I8: Y | J8: N | K8: N | L8: N | M8: N | N8: N | O8: Y | P8: 0.808 | Q8: 0.001 | R8: -0.016 | S8: 0.0228 | T8: 0.2706 | U8: 0.3082 | V8: 0.3659 | W8: 0.4521941364 | X8: 0.224 | Y8: 0.0699 | Z8: 0.522 | AA8: 0.522 | AB8: 2128.4
B9: Zoom Video Communications, Inc. (NasdaqGS:ZM) | C9: ZM | D9: Capital IQ, Proxy, Morningstar | E9: Zoom Video Communications, Inc. provides unified communications platform in the Americas, the Asia Pacific, Europe, the Middle East, and Africa. The company offers Zoom Meetings that offers HD video, voice, chat, and content sharing through mobile devices, desktops, laptops, telephones, and conference room systems; Zoom Phone, an enterprise cloud phone system; and Zoom Chat enables users to share messages, images, audio files, and content in desktop, laptop, tablet, and mobile devices. It also provides Zoom Rooms, a software-based conference room system; Zoom Conference Room Connector, a gateway for SIP/H.323 endpoints to join Zoom meetings; Zoom Events, which enables users to manage and host internal and external virtual events; OnZoom, a prosumer-focused virtual event platform and marketplace for Zoom users to create, host, and monetize online events; and Zoom Webinars to provide video presentations to large audiences from many devices. In addition, the company offers Zoom Developer Platform that enables developers, platform integrators, service providers, and customers to build apps and integrations using Zoom’s video-based communications solutions, as well as integrate Zoom’s technology into their products and services; Zoom App Marketplace, which helps developers to publish their apps, as well as third-party integrations of Zoom; and Zoom Contact Center, an omnichannel contact center solution. It serves individuals; and education, entertainment/media, enterprise infrastructure, finance, government, healthcare, manufacturing, non-profit/not for profit and social impact, retail/consumer products, and software/Internet industries. The company was formerly known as Zoom Communications, Inc. and changed its name to Zoom Video Communications, Inc. in May 2012. The company was incorporated in 2011 and is headquartered in San Jose, California. | F9: NASDAQ | G9: Y | H9: Y | I9: N | J9: N | K9: N | L9: N | M9: Y | N9: Y | O9: N | P9: 0.764 | Q9: 0.155 | R9: 0.132 | S9: 0.1408 | T9: 0.0306 | U9: 0.009 | V9: 0.4583 | W9: 0.1774142958 | X9: 0.03 | Y9: 0.096 | Z9: 0.195 | AA9: 0.195 | AB9: 4527.2
B10: AppLovin Corporation (NasdaqGS:APP) | C10: APP | D10: Capital IQ, Mergent | E10: AppLovin Corporation engages in building a software-based platform for advertisers to enhance the marketing and monetization of their content in the United States and internationally. It operates through two segments, Software Platform and Apps. The company’s software solutions include AppDiscovery, a marketing software solution, which matches advertiser demand with publisher supply through auctions; MAX, an in-app bidding software that optimizes the value of a publisher’s advertising inventory by running a real-time competitive auction; Adjust, a measurement and analytics marketing platform that provides marketers with the visibility, insights, and tools needed to grow their apps from early stage to maturity; and Wurl, a connected TV platform, which distributes streaming video for content companies and provides advertising and publishing solutions through its AdPool, ContentDiscovery, and Global FAST Pass products. It also offers SparkLabs, which uses app store optimization to enhance ad visibility; AppLovin Exchange, which connects buyers to mobile and CTV devices through a single and direct RTB exchange; and Array, an end-to-end app management suite for mobile operators and end users. In addition, the company operates various free-to-play mobile games. It serves individuals, small and independent businesses, enterprises, advertisers and advertising networks, mobile app publishers, indie studio developers, and internet platforms. AppLovin Corporation was incorporated in 2011 and is headquartered in Palo Alto, California. | F10: NASDAQ | G10: N | H10: N | I10: Y | J10: N | K10: N | L10: Y | M10: N | N10: Y | O10: Y | P10: 0.677 | Q10: 0.347 | R10: 0.198 | S10: 0.1087 | T10: 0.1654 | U10: 0.7267 | V10: 0.2992 | W10: 0.1804361731 | X10: 0.168 | Y10: 0.094 | Z10: 0.313 | AA10: 0.313 | AB10: 3283.1
B11: Snowflake Inc. (NYSE:SNOW) | C11: SNOW | D11: Capital IQ and Proxy | E11: Snowflake Inc. provides a cloud-based data platform for various organizations in the United States and internationally. Its platform offers Data Cloud, which enables customers to consolidate data into a single source of truth to drive meaningful business insights, build data-driven applications, and share data and data products, as well as applies artificial intelligence (AI) for solving business problems. The company was formerly known as Snowflake Computing, Inc. and changed its name to Snowflake Inc. in April 2019. Snowflake Inc. was incorporated in 2012 and is based in Bozeman, Montana. | F11: NYSE | G11: N | H11: Y | I11: Y | J11: N | K11: N | L11: N | M11: N | N11: N | O11: Y | P11: 0.68 | Q11: -0.354 | R11: -0.39 | S11: -0.2979 | T11: 0.3586 | U11: 0.0526 | V11: 0.611 | W11: 0.4589168003 | X11: 0.23 | Y11: - | Z11: 0.68 | AA11: 0.68 | AB11: 2806.5
B12: Dynatrace, Inc. (NYSE:DT) | C12: DT | D12: Capital IQ, Seeking Alpha, Financial Times | E12: Dynatrace, Inc. provides a security platform for multicloud environments. It operates Dynatrace, a security platform, which provides application and microservices monitoring, runtime application security, infrastructure monitoring, log management and analytics, digital experience monitoring, digital business analytics, and cloud automation. Its platform allows its customers to modernize and automate IT operations, develop and release software, and enhance user experiences. The company also offers implementation, consulting, and training services. Dynatrace, Inc. markets its products through a combination of direct sales team and a network of partners, including resellers, system integrators, and managed service providers. It serves customers in various industries comprising banking, insurance, retail, manufacturing, travel, and software. The company operates in North America, Europe, the Middle East, Africa, the Asia Pacific, and Latin America. Dynatrace, Inc. was founded in 2005 and is headquartered in Waltham, Massachusetts. | F12: NYSE | G12: N | H12: N | I12: N | J12: N | K12: N | L12: Y | M12: N | N12: N | O12: N | P12: 0.825 | Q12: 0.12 | R12: 0.092 | S12: 0.1444 | T12: 0.2439 | U12: 0.0374 | V12: 0.4983 | W12: 0.2651517373 | X12: 0.207 | Y12: 0.1969 | Z12: 0.275 | AA12: 0.275 | AB12: 1364.2
B13: Aspen Technology, Inc. (NasdaqGS:AZPN) | C13: AZPN | D13: Seeking Alpha, Financial Times | E13: Aspen Technology, Inc. provides industrial software that focuses on helping customers in asset-intensive industries worldwide. The company’s solutions address complex environments where it is critical to optimize the asset design, operation, and maintenance lifecycle. Its software is used in performance engineering, modeling and design, supply chain management, predictive and prescriptive maintenance, digital grid management, and industrial data management. The company serves a range of asset-intensive industries, including oil and gas exploration and production; oil and gas processing and distribution; and oil and gas refining and marketing, as well as bulk and specialty chemicals, engineering and construction, power and utilities, metals and mining, and pharmaceuticals. Aspen Technology, Inc. was founded in 1981 and is headquartered in Bedford, Massachusetts. Aspen Technology, Inc. operates as a subsidiary of EMR Worldwide Inc. | F13: NASDAQ | G13: Y | H13: N | I13: Y | J13: N | K13: N | L13: N | M13: N | N13: N | O13: N | P13: 0.638 | Q13: 0.294 | R13: -0.172 | S13: -0.0817 | T13: 0.2935 | U13: 0.0148 | V13: 0.6056 | W13: 0.2047965941 | X13: 0.091 | Y13: 0.7019 | Z13: - | AA13: - | AB13: 1057
B14: Informatica Inc. (NYSE:INFA) | C14: INFA | D14: Seeking Alpha, Financial Times | E14: Informatica Inc. develops an artificial intelligence-powered platform that connects, manages, and unifies data across multi-vendor, multi-cloud, and hybrid systems at enterprise scale worldwide. Its platform includes a suite of interoperable data management products, including data integration products to ingest, transform, and integrate data; API and application integration products that enable users to create and manage APIs and integration processes for app-to-app synchronization, business process orchestration, B2B partner management, application development, and API management; data quality and observability products to profile, cleanse, standardize, observe, and monitor data to deliver accurate, complete, and consistent data; and master data management products to create an authoritative single source of truth of business-critical data. The company’s platform also includes customer and business 360 application that allow business analysts to create 360-degree views of business data domains like customer, product, supplier, reference, and finance with simplified business user experiences; data catalog products that enables customers to quickly find, access, and understand enterprise data using a simple Google-like search experience; governance and privacy products that help users define policies, govern data, and ensure compliance with industry and corporate policies; and a data marketplace that delivers cloud shopping experience for data consumers and enables data sharing and AI models across organizations to facilitate data-driven decision making. It also offers maintenance and professional services. The company sells its products through its direct sales team. The company was founded in 1993 and is headquartered in Redwood City, California. | F14: NYSE | G14: Y | H14: N | I14: N | J14: N | K14: N | L14: Y | M14: Y | N14: Y | O14: N | P14: 0.795 | Q14: 0.156 | R14: 0.059 | S14: -0.0785 | T14: 0.0598 | U14: 0.4603 | V14: 0.4332 | W14: 0.2174272818 | X14: 0.068 | Y14: 0.1727 | Z14: 0.064 | AA14: 0.064 | AB14: 1595.2
B15: Grab Holdings Limited (NasdaqGS:GRAB) | C15: GRAB | D15: Financial Times, ValuEngine | E15: Grab Holdings Limited engages in the provision of superapps in Cambodia, Indonesia, Malaysia, Myanmar, the Philippines, Singapore, Thailand, and Vietnam. The company offers its Grab ecosystem, a single platform with superapps for driver- and merchant-partners and consumers, that allows access to mobility, delivery, digital financial services, and enterprise sector offerings. Grab Holdings Limited is headquartered in Singapore. | F15: NASDAQ | G15: N | H15: N | I15: NA | J15: NA | K15: N | L15: N | M15: Y | N15: Y | O15: N | P15: 0.365 | Q15: -0.14 | R15: -0.201 | S15: -0.184 | T15: 0.6462 | U15: 0.1092 | V15: 0.3574 | W15: 0.1784654515 | X15: 0.174 | Y15: - | Z15: 0.713 | AA15: 0.713 | AB15: 2359
B16: Paycom Software, Inc. (NYSE:PAYC) | C16: PAYC | D16: Proxy, Financial Times | E16: Paycom Software, Inc. provides cloud-based human capital management (HCM) solution delivered as software-as-a-service for small to mid-sized companies in the United States. It offers functionality and data analytics that businesses need to manage the employment life cycle from recruitment to retirement. The company’s HCM solution provides a suite of applications in the areas of talent acquisition, including applicant tracking, candidate tracker, background checks, on-boarding, e-verify, and tax credit services; and time and labor management, such as time and attendance, scheduling, time-off requests, labor allocation, labor management reports/push reporting, geofencing/geotracking, and Microfence, a proprietary Bluetooth. Its HCM solution also offers payroll applications comprising better employee transaction interface, payroll and tax management, payroll card, Everyday, Paycom pay, Client Action Center, expense management, mileage tracker/fixed and variable rates, garnishment administration, and GL concierge applications; and talent management applications that include employee self-service, compensation budgeting, performance management, position management, and Paycom learning, as well as my analytics. In addition, its HCM solution provides manager on-the-go that gives supervisors and managers the ability to perform a variety of tasks, such as approving time-off requests and expense reimbursements; direct data exchange; ask here, a tool for direct line of communication to ask work-related questions; document and checklist; government and compliance; benefits administration/benefits to carrier; benefit enrollment service; COBRA administration; personnel action and performance discussion forms; surveys; 401(k) reporting; report center; and affordable care act applications, as well as Clue, which securely collects, tracks, and manages the vaccination and testing data of the workforce. Paycom Software, Inc. was founded in 1998 and is based in Oklahoma City, Oklahoma. | F16: NYSE | G16: Y | H16: Y | I16: Y | J16: N | K16: N | L16: Y | M16: N | N16: N | O16: N | P16: 0.868 | Q16: 0.297 | R16: 0.266 | S16: 0.2012 | T16: 0.2316 | U16: 0.0551 | V16: 0.4167 | W16: 0.1174647222 | X16: 0.115 | Y16: 0.0604 | Z16: 0.263 | AA16: 0.263 | AB16: 1693.7
B17: Dropbox, Inc. (NasdaqGS:DBX) | C17: DBX | D17: Proxy | E17: Dropbox, Inc. provides a content collaboration platform worldwide. The company’s platform allows individuals, families, teams, and organizations to collaborate and sign up for free through its website or app, as well as upgrade to a paid subscription plan for premium features. It serves customers in professional services, technology, media, education, industrial, consumer and retail, and financial services industries. The company was formerly known as Evenflow, Inc. and changed its name to Dropbox, Inc. in October 2009. Dropbox, Inc. was incorporated in 2007 and is headquartered in San Francisco, California. | F17: NASDAQ | G17: Y | H17: Y | I17: Y | J17: Y | K17: N | L17: N | M17: Y | N17: N | O17: N | P17: 0.809 | Q17: 0.221 | R17: 0.153 | S17: 0.1813 | T17: 0.076 | U17: 1.0889 | V17: 0.2811 | W17: 0.3743604093 | X17: 0.024 | Y17: 0.3606 | Z17: 0.093 | AA17: 0.093 | AB17: 2501.6
B18: Twilio Inc. (NYSE:TWLO) | C18: TWLO | D18: Proxy, Financial Times | E18: Twilio Inc., together with its subsidiaries, provides customer engagement platform solutions in the United States and internationally. It operates through two segments, Twilio Communications and Twilio Segment. The company provides various application programming interfaces and software solutions for communications between customers and end users, including messaging, voice, email, flex, marketing campaigns, and user identity and authentication. It also offers software products to build direct, personalized relationships with their end users, such as segment, a platform that provides tools for first-party data by unifying real-time information collected; and engage, an automation platform for the delivery of omnichannel campaigns. Twilio Inc. was incorporated in 2008 and is headquartered in San Francisco, California. | F18: NYSE | G18: Y | H18: Y | I18: Y | J18: N | K18: N | L18: Y | M18: N | N18: N | O18: Y | P18: 0.492 | Q18: -0.024 | R18: -0.093 | S18: -0.2445 | T18: 0.0856 | U18: 0.1079 | V18: 0.3577 | W18: 0.2269650208 | X18: 0.073 | Y18: - | Z18: 0.331 | AA18: 0.331 | AB18: 4153.9
B19: Procore Technologies, Inc. (NYSE:PCOR) | C19: PCOR | D19: Seeking Alpha, Financial Times, ValuEngine | E19: Procore Technologies, Inc. engages in the provision of a cloud-based construction management platform and related software products in the United States and internationally. The company’s platform enables owners, general and specialty contractors, architects, and engineers to collaborate on construction projects. It offers Preconstruction that facilitates collaboration between internal and external stakeholders during the planning, budgeting, estimating, bidding, and partner selection phase of a construction project; and Project Execution, which enables real-time collaboration, information storage, design, BIM model clash detection, and regulation compliance for teams on the jobsite and in the back office. The company also provides Workforce Management, that helps contractors to schedule, track, and forecast labor productivity, enhance time management, communication with workforces, and manage profitability on construction projects; Financial Management, which provides customers with visibility into the financial health of their individual construction projects and portfolios, as well as facilitates untethered access to financial data, linking the field, and the office in real-time; and Construction Intelligence, that allows customers to capture, manage, and learn from data for project and portfolio reporting, analytics, and artificial intelligence-guided workflows, as well as to monitor projects and drive informed decision-making for business needs. It serves owners, general contractors, and specialty contractors operating in the commercial, residential, industrial, and infrastructure segments of the construction industry. The company allow users to access its products on computers, smartphones, and tablets through any web browser or from its mobile application available for iOS and Android platforms through its direct sales team. Procore Technologies, Inc. was incorporated in 2002 and is headquartered in Carpinteria, California. | F19: NYSE | G19: N | H19: N | I19: Y | J19: N | K19: =IFERROR(IF(SEARCH(K$2,$E19)>0,"Y","N"),"N") -> N | L19: Y | M19: N | N19: N | O19: Y | P19: 0.817 | Q19: -0.183 | R19: -0.216 | S19: -0.1997 | T19: 0.3191 | U19: 0.0752 | V19: 0.7194 | W19: 0.3353368421 | X19: 0.2 | Y19: 0.0989 | Z19: 0.334 | AA19: 0.334 | AB19: 950
B20: ServiceNow, Inc. (NYSE:NOW) | C20: NOW | D20: 10K (partner), Proxy, Mergent | E20: ServiceNow, Inc. provides end to-end intelligent workflow automation platform solutions for digital businesses in the North America, Europe, the Middle East and Africa, Asia Pacific, and internationally. The company operates the Now platform for end-to-end digital transformation, artificial intelligence, machine learning, robotic process automation, process mining, performance analytics, and collaboration and development tools. It also provides asset management, cloud observability, integrated risk management; information technology (IT) service management applications; IT service management product suite for enterprise’s employees, customers, and partners; strategic portfolio management product suite; IT operations management product that connects a customer’s physical and cloud-based IT infrastructure; IT asset management; and security operations that connects with internal and third party. In addition, the company offers integrated risk management product to manage risk and resilience; environmental, social and governance management product; human resources, legal, and workplace service delivery products; customer service management product; and field service management applications. Further, the company provides app engine product; automation engine; platform privacy and security product; and source-to-pay operations. It serves to government, financial services, healthcare, telecommunications, manufacturing, IT services, technology, oil and gas, education, and consumer products through service providers and resale partners. The company was formerly known as Service-now.com and changed its name to ServiceNow, Inc. in May 2012. ServiceNow, Inc. was founded in 2004 and is headquartered in Santa Clara, California. | F20: NYSE | G20: N | H20: Y | I20: Y | J20: N | K20: N | L20: N | M20: Y | N20: Y | O20: Y | P20: 0.786 | Q20: 0.148 | R20: 0.085 | S20: 0.193 | T20: 0.2382 | U20: 0.2304 | V20: 0.4642 | W20: 0.2367629027 | X20: 0.211 | Y20: -0.0048 | Z20: 0.257 | AA20: 0.257 | AB20: 8971
B21: Workday, Inc. (NasdaqGS:WDAY) | C21: WDAY | D21: Proxy | E21: Workday, Inc. provides enterprise cloud applications in the United States and internationally. Its applications help its customers to plan, execute, analyze, and extend to other applications and environments to manage their business and operations. The company offers a suite of financial management applications to maintain accounting information in the general ledger; manage financial processes, such as payables and receivables; identify real-time financial, operational, and management insights; enhance financial consolidation; reduce time-to-close; promote internal control and auditability; and achieve consistency across finance operations. It also provides spend management solutions that help organizations to streamline supplier selection and contracts, manage indirect spend, and build and execute sourcing events, such as requests for proposals; expense management solutions to submit and approve expenses; and a suite of human capital management applications that enables HR teams to hire, onboard, pay, develop, reskill, and provide employee experiences. In addition, the company offers planning applications; and applications for analytics and reporting comprising augmented analytics to surface insights to the line of business in simple-to-understand stories, machine learning to drive efficiency and automation, and benchmarks to compare performance against other companies. Further, it provides supply chain and inventory solutions to healthcare organizations; solutions to manage the end-to-end student and faculty lifecycle; and Workday Extend for customers and their developers to build custom applications. It serves professional and business services, financial services, healthcare, education, government, technology, media, retail, and hospitality industries. The company was formerly known as North Tahoe Power Tools, Inc. and changed its name to Workday, Inc. in July 2005. Workday, Inc. was incorporated in 2005 and is headquartered in Pleasanton, California. | F21: NASDAQ | G21: N | H21: Y | I21: N | J21: N | K21: N | L21: Y | M21: N | N21: Y | O21: Y | P21: 0.756 | Q21: 0.064 | R21: 0.025 | S21: 0.1902 | T21: 0.1678 | U21: 0.2897 | V21: 0.3914 | W21: 0.3394406943 | X21: 0.164 | Y21: 0.1342 | Z21: 0.189 | AA21: 0.189 | AB21: 7259
B22: Adobe Inc. (NasdaqGS:ADBE) | C22: ADBE | D22: 10K (Comp), Mergent, Morningstar | E22: Adobe Inc., together with its subsidiaries, operates as a diversified software company worldwide. It operates through three segments: Digital Media, Digital Experience, and Publishing and Advertising. The Digital Media segment offers products, services, and solutions that enable individuals, teams, and enterprises to create, publish, and promote content; and Document Cloud, a unified cloud-based document services platform. Its flagship product is Creative Cloud, a subscription service that allows members to access its creative products. This segment serves content creators, students, workers, marketers, educators, enthusiasts, and communicators. The Digital Experience segment provides an integrated platform and set of applications and services that enable brands and businesses to create, manage, execute, measure, monetize, and optimize customer experiences from analytics to commerce. This segment serves marketers, advertisers, agencies, publishers, merchandisers, merchants, web analysts, data scientists, developers, and executives across the C-suite. The Publishing and Advertising segment offers products and services, such as e-learning solutions, technical document publishing, web conferencing, document and forms platform, web application development, and high-end printing, as well as Advertising Cloud offerings. It also provides consulting, technical support, and learning services. The company offers its products and services directly to enterprise customers through its sales force and local field offices, as well as to end users through app stores and through its website at adobe.com. It also distributes products and services through distributors, value-added resellers, systems integrators, software vendors and developers, retailers, and original equipment manufacturers. The company was formerly known as Adobe Systems Incorporated and changed its name to Adobe Inc. in October 2018. Adobe Inc. was founded in 1982 and is headquartered in San Jose, California. | F22: NASDAQ | G22: Y | H22: N | I22: Y | J22: N | K22: N | L22: Y | M22: N | N22: Y | O22: N | P22: 0.881 | Q22: 0.381 | R22: 0.35 | S22: 0.2408 | T22: 0.1076 | U22: 0.209 | V22: 0.3429 | W22: 0.1798254414 | X22: 0.111 | Y22: - | Z22: 0.134 | AA22: 0.134 | AB22: 19936
F23: TOTAL | G23: =COUNTIF(G3:G22,"Y") -> 9
B24: DocuSign, Inc. (NasdaqGS:DOCU) | C24: DOCU | E24: DocuSign, Inc. provides electronic signature solution in the United States and internationally. The company provides e-signature solution that enables sending and signing of agreements on various devices; Contract Lifecycle Management (CLM), which automates workflows across the entire agreement process; Document Generation streamlines the process of generating new, custom agreements; and Gen for Salesforce, which allows sales representatives to automatically generate agreements with a few clicks from within Salesforce. It also provides Identify, a signer-identification option for checking government-issued IDs; Standards-Based Signatures, which support signatures that involve digital certificates; Monitor that uses advanced analytics to track DocuSign eSignature web, mobile, and API account; Notary which enables notaries public to conduct remote online notarization transactions; and Web Forms, a web forms that quickly draft agreements using pre-populated data from completed forms or external systems via APIs. In addition, the company offers Rooms for Real Estate that provides a way for brokers and agents to manage the entire real estate transaction digitally. Signature and CLM are FedRAMP, an authorized version of DocuSign eSignature for U.S. federal government agencies; and life sciences modules that support compliance with the electronic signature practices. The company sells its products through direct and partner-assisted sales, and digital self-service purchasing. DocuSign, Inc. was incorporated in 2003 and is headquartered in San Francisco, California. | K24: Y | L24: Y | M24: N | N24: N | O24: Y | P24: 0.804 | Q24: 0.044 | R24: 0.023 | S24: 0.0268 | T24: 0.0978 | U24: 0.1124 | V24: 0.5851 | W24: 0.2080415656 | X24: 0.062 | Y24: 0.576 | Z24: 0.239 | AA24: 0.3155 | AB24: 2761.9
G25: =COUNTIF(G3:G22,"Y") -> 9

Sheet DOCU_Comps
B2: =DOCU_DCF!C2&"Valuation with Public Comparables" -> DocuSignValuation with Public Comparables
B3: Fiscal year ends in January USD in millions except per share data.
B4: Valuation for period ended | C4: 2024-01-31
B5: Ticker | C5: =DOCU_DCF!C3 -> DOCU
B6: Valuation Date | C6: 2024-04-04
B7: Company Name | C7: =DOCU_DCF!C2 -> DocuSign | H7: Enterprise Value Multiples | N7: Equity Value Multiples
F8: Market Value | G8: Enterprise | K8: Forward | L8: 2 year growth | M8: BV | N8: Forward | O8: Forward | P8: Price(Market)-
B9: Company | C9: Ticker | D9: Share price | F9: of Equity | G9: Value | H9: EV/Sales | I9: EV/EBIT | J9: EV/EBITDA | K9: EPS | L9: rate | M9: Equity | N9: P/E | O9: PEG | P9: to-Book
B10: =DOCU_DCF!C2 -> DocuSign | C10: =C5 -> DOCU | D10: =DOCU_DCF!C4 -> 58.48 | F10: 11960.3 | G10: =F10+SUM(INDIRECT(C10&"_LTM!H12:H14")) -> 10922.5 | H10: =$G10/INDIRECT($C10&"_LTM!H6") -> 3.954705094 | I10: =$G10/INDIRECT($C10&"_LTM!H7") -> 174.2025518 | J10: =$G10/INDIRECT($C10&"_LTM!H8") -> 89.01792991 | K10: 3.23 | L10: 0.062 | M10: 1129.7 | N10: =D10/K10 -> 18.10526316 | O10: =D10/(K10*L10*100) -> 2.920203735 | P10: =F10/M10 -> 10.58714703
B12: Salesforce | C12: CRM | D12: 302.26 | F12: 293192.2 | G12: =F12+SUM(INDIRECT(C12&"_LTM!H12:H14")) -> 287712.2 | H12: =$G12/INDIRECT($C12&"_LTM!H6") -> 8.254072353 | I12: =$G12/INDIRECT($C12&"_LTM!H7") -> 47.96002667 | J12: =$G12/INDIRECT($C12&"_LTM!H8") -> 31.20184362 | K12: 9.79 | L12: 0.097 | M12: 59646 | N12: =D12/K12 -> 30.87436159 | O12: =D12/(K12*L12*100) -> 3.182923876 | P12: =F12/M12 -> 4.915538343
B13: RingCentral | C13: RNG | D13: 33.74 | F13: 3114.8 | G13: 4684.89 | H13: =$G13/INDIRECT($C13&"_LTM!H6") -> 2.1271749 | I13: =$G13/INDIRECT($C13&"_LTM!H7") -> -26.12877858 | J13: =$G13/INDIRECT($C13&"_LTM!H8") -> 85.80384615 | K13: 3.55 | L13: 0.083 | M13: -303.1 | N13: 9.504225352 | O13: 1.145087392 | P13: -10.27647641
B14: Zoom Video Communications | C14: ZM | D14: 64.73 | F14: 19908.3 | G14: 12536.61 | H14: =$G14/INDIRECT($C14&"_LTM!H6") -> 2.769175208 | I14: =$G14/INDIRECT($C14&"_LTM!H7") -> 20.95371887 | J14: =$G14/INDIRECT($C14&"_LTM!H8") -> 17.840629 | K14: 4.89 | L14: 0.03 | M14: 8019.4 | N14: 13.23721881 | O14: 4.412406271 | P14: 2.482517395
B15: Aspen Technologies | C15: AZPN | D15: 215.19 | F15: 13675.1 | G15: 13737.83 | H15: =$G15/INDIRECT($C15&"_LTM!H6") -> 12.99687799 | I15: =$G15/INDIRECT($C15&"_LTM!H7") -> -75.49087812 | J15: =$G15/INDIRECT($C15&"_LTM!H8") -> 44.20094336 | K15: 7.33 | L15: 0.091 | M15: 1303 | N15: 29.3574352 | O15: 3.22609178 | P15: 10.49508826
B16: Informatica | C16: INFA | D16: 35.2 | F16: 10386.8 | G16: 11281.65 | H16: =$G16/INDIRECT($C16&"_LTM!H6") -> 7.072247994 | I16: =$G16/INDIRECT($C16&"_LTM!H7") -> 120.9180064 | J16: =$G16/INDIRECT($C16&"_LTM!H8") -> 45.43556182 | K16: 1.08 | L16: 0.068 | M16: 2212.6 | N16: 32.59259259 | O16: 4.793028322 | P16: 4.694386694
B17: Paycom Software | C17: PAYC | D17: 198.28 | F17: 11332.7 | G17: 11114.62 | H17: =$G17/INDIRECT($C17&"_LTM!H6") -> 6.562330991 | I17: =$G17/INDIRECT($C17&"_LTM!H7") -> 24.62800798 | J17: =$G17/INDIRECT($C17&"_LTM!H8") -> 22.07910211 | K17: 7.74 | L17: 0.115 | M17: 13070.9 | N17: 25.61757106 | O17: 2.227614875 | P17: 0.8670175734
B18: Dropbox | C18: DBX | D18: 24.31 | F18: 8362.3 | G18: 9036.9 | H18: =$G18/INDIRECT($C18&"_LTM!H6") -> 3.612448033 | I18: =$G18/INDIRECT($C18&"_LTM!H7") -> 23.5642764 | J18: =$G18/INDIRECT($C18&"_LTM!H8") -> 16.32682927 | K18: 2.04 | L18: 0.024 | M18: -165.8 | N18: 11.91666667 | O18: 4.965277778 | P18: -50.43606755
B19: Twilio | C19: TWLO | D19: 65.45 | F19: 11369.7 | G19: 8534.98 | H19: =$G19/INDIRECT($C19&"_LTM!H6") -> 2.054690773 | I19: =$G19/INDIRECT($C19&"_LTM!H7") -> -22.18606707 | J19: =$G19/INDIRECT($C19&"_LTM!H8") -> -85.09451645 | K19: 2.7 | L19: 0.073 | M19: 9732.6 | N19: 24.24074074 | O19: 3.320649417 | P19: 1.168207879
B20: Adobe | C20: ADBE | D20: 502.09 | F20: 224936.3 | G20: 222202.3 | H20: =$G20/INDIRECT($C20&"_LTM!H6") -> 11.1457815 | I20: =$G20/INDIRECT($C20&"_LTM!H7") -> 31.87524028 | J20: =$G20/INDIRECT($C20&"_LTM!H8") -> 29.27952299 | K20: 18.4 | L20: 0.111 | M20: 16518 | N20: 27.2875 | O20: 2.458333333 | P20: 13.61764741
G22: High | H22: =_xlfn.MAXIFS(H12:H20,H12:H20,">0") -> 12.99687799 | I22: =_xlfn.MAXIFS(I12:I20,I12:I20,">0") -> 120.9180064 | J22: 85.80384615 | N22: 32.59259259 | O22: 4.965277778 | P22: 13.61764741
G23: Mean | H23: =AVERAGEIF(H12:H20,">0") -> 6.288311082 | I23: =AVERAGEIF(I12:I20,">0") -> 44.98321277 | J23: 36.52103479 | N23: 22.73647911 | O23: 3.303490338 | P23: 5.462914794
G24: Median | H24: =MEDIAN(IF(H12:H20>0,H12:H20)) -> 6.562330991 | I24: =MEDIAN(IF(I12:I20>0,I12:I20)) -> 28.25162413 | J24: =MEDIAN(IF(J12:J20>0,J12:J20)) -> 30.24068331 | N24: =MEDIAN(IF(N12:N20>0,N12:N20)) -> 25.61757106 | O24: =MEDIAN(IF(O12:O20>0,O12:O20)) -> 3.22609178 | P24: =MEDIAN(IF(P12:P20>0,P12:P20)) -> 4.694386694
G25: Low | H25: =_xlfn.MINIFS(H12:H20,H12:H20,">0") -> 2.054690773 | I25: =_xlfn.MINIFS(I12:I20,I12:I20,">0") -> 20.95371887 | J25: 16.32682927 | N25: 9.504225352 | O25: 1.145087392 | P25: 0.8670175734
H26: =_xlfn.STDEV.S(H12:H20) -> 3.999014031 | N26: =_xlfn.STDEV.S(N12:N20) -> 8.809634469
D28: Implied price per share | E28: Diluted shares outstanding | F28: Implied Equity Value | G28: Implied Enterprise Value | H28: Range of EV/Sales | I28: Range of EV/EBIT | J28: Range of EV/EBITDA | N28: Range of Forward P/E | O28: Range of Forward PEG | P28: Range of Price-to-Book
B29: =DOCU_DCF!C2 -> DocuSign | D29: =F29/E29 -> 33.29069086 | E29: =DOCU_DCF!$I$109/1000 -> 221.1011347 | F29: =G29-SUM(DOCU_LTM!$H$12:$H$14) -> 7360.609526 | G29: =H29*DOCU_LTM!$H$6 -> 6322.809526 | H29: =H23-H26 -> 2.289297051
D30: =F30/E30 -> 133.1986073 | E30: =DOCU_DCF!$I$109/1000 -> 221.1011347 | F30: =G30-SUM(DOCU_LTM!$H$12:$H$14) -> 29450.36323 | G30: =H30*DOCU_LTM!$H$6 -> 28412.56323 | H30: =H23+H26 -> 10.28732511
D31: 12.71911157 | E31: =DOCU_DCF!$I$109/1000 -> 221.1011347 | F31: =G31-SUM(DOCU_LTM!$H$12:$H$14) -> 2812.21 | G31: =I31*DOCU_LTM!$H$7 -> 1774.41 | I31: 28.3
D32: 17.45490816 | E32: =DOCU_DCF!$I$109/1000 -> 221.1011347 | F32: =G32-SUM(DOCU_LTM!$H$12:$H$14) -> 3859.3 | G32: =I32*DOCU_LTM!$H$7 -> 2821.5 | I32: 45
D33: 21.45325941 | E33: =DOCU_DCF!$I$109/1000 -> 221.1011347 | F33: =G33-SUM(DOCU_LTM!$H$12:$H$14) -> 4743.34 | G33: =J33*DOCU_LTM!$H$8 -> 3705.54 | J33: 30.2
D34: 24.94944228 | E34: =DOCU_DCF!$I$109/1000 -> 221.1011347 | F34: =G34-SUM(DOCU_LTM!$H$12:$H$14) -> 5516.35 | G34: =J34*DOCU_LTM!$H$8 -> 4478.55 | J34: 36.5
D35: =N35*$K$10 -> 44.9837082 | E35: =DOCU_DCF!$I$109/1000 -> 221.1011347 | N35: =N23-N26 -> 13.92684464
D36: =N36*$K$10 -> 101.8939469 | E36: =DOCU_DCF!$I$109/1000 -> 221.1011347 | N36: =N26+N23 -> 31.54611358
D37: =O37*$K$10*$L$10*100 -> 64.0832 | E37: =DOCU_DCF!$I$109/1000 -> 221.1011347 | O37: 3.2
D38: =O38*$K$10*$L$10*100 -> 66.0858 | E38: =DOCU_DCF!$I$109/1000 -> 221.1011347 | O38: 3.3
D39: =F39/E39 -> 24.01430461 | E39: =DOCU_DCF!$I$109/1000 -> 221.1011347 | F39: =P39*$M$10 -> 5309.59 | P39: 4.7
D40: 28.10184582 | E40: =DOCU_DCF!$I$109/1000 -> 221.1011347 | F40: =P40*$M$10 -> 6213.35 | P40: 5.5

Sheet DOCU_DCF
B2: Company Name | C2: DocuSign
B3: Ticker | C3: DOCU
B4: Share Price | C4: 58.48
B5: Valuation Date | C5: 2024-03-07
B7: =C2&" ("&C3&") DISCOUNTED CASH FLOWS MODEL" -> DocuSign (DOCU) DISCOUNTED CASH FLOWS MODEL
B8: Fiscal year ends in January USD in thousands except per share data.
A10: x | B10: FORECASTING CASH FLOWS
F12: Historical | K12: Projected
F13: 2019 | G13: =F13+1 -> 2020 | H13: 2021 | I13: 2022 | J13: 2023 | K13: 2024 | L13: 2025 | M13: 2026 | N13: 2027 | O13: 2028 | P13: 2029 | Q13: 2030
B14: Revenue - subscription | F14: =INDEX(DOCU_IS!$A$10:$F$54,MATCH(DOCU_DCF!$B14,DOCU_IS!$A$10:$A$54,0),MATCH(DOCU_DCF!F$13,DOCU_IS!$A$10:$F$10,0)) -> 663657 | G14: =INDEX(DOCU_IS!$A$10:$F$54,MATCH(DOCU_DCF!$B14,DOCU_IS!$A$10:$A$54,0),MATCH(DOCU_DCF!G$13,DOCU_IS!$A$10:$F$10,0)) -> 918463 | H14: =INDEX(DOCU_IS!$A$10:$F$54,MATCH(DOCU_DCF!$B14,DOCU_IS!$A$10:$A$54,0),MATCH(DOCU_DCF!H$13,DOCU_IS!$A$10:$F$10,0)) -> 1381397 | I14: =INDEX(DOCU_IS!$A$10:$F$54,MATCH(DOCU_DCF!$B14,DOCU_IS!$A$10:$A$54,0),MATCH(DOCU_DCF!I$13,DOCU_IS!$A$10:$F$10,0)) -> 2037272 | J14: =INDEX(DOCU_IS!$A$10:$F$54,MATCH(DOCU_DCF!$B14,DOCU_IS!$A$10:$A$54,0),MATCH(DOCU_DCF!J$13,DOCU_IS!$A$10:$F$10,0)) -> 2442177 | K14: =J14*(1+K38) -> 2670000 | L14: 2864764.5 | M14: 3079621.837 | N14: 3325991.585 | O14: 3592070.911 | P14: 3879436.584 | Q14: 4189791.511
B15: Revenue - professional services & other revenue | F15: =INDEX(DOCU_IS!$A$10:$F$54,MATCH(DOCU_DCF!$B15,DOCU_IS!$A$10:$A$54,0),MATCH(DOCU_DCF!F$13,DOCU_IS!$A$10:$F$10,0)) -> 37312 | G15: =INDEX(DOCU_IS!$A$10:$F$54,MATCH(DOCU_DCF!$B15,DOCU_IS!$A$10:$A$54,0),MATCH(DOCU_DCF!G$13,DOCU_IS!$A$10:$F$10,0)) -> 55508 | H15: =INDEX(DOCU_IS!$A$10:$F$54,MATCH(DOCU_DCF!$B15,DOCU_IS!$A$10:$A$54,0),MATCH(DOCU_DCF!H$13,DOCU_IS!$A$10:$F$10,0)) -> 71650 | I15: =INDEX(DOCU_IS!$A$10:$F$54,MATCH(DOCU_DCF!$B15,DOCU_IS!$A$10:$A$54,0),MATCH(DOCU_DCF!I$13,DOCU_IS!$A$10:$F$10,0)) -> 69941 | J15: =INDEX(DOCU_IS!$A$10:$F$54,MATCH(DOCU_DCF!$B15,DOCU_IS!$A$10:$A$54,0),MATCH(DOCU_DCF!J$13,DOCU_IS!$A$10:$F$10,0)) -> 73738 | K15: 76000 | L15: 73455.5 | M15: 78964.6625 | N15: 85281.8355 | O15: 92104.38234 | P15: 99472.73293 | Q15: 107430.5516
B16: Total Revenue | F16: =INDEX(DOCU_IS!$A$10:$F$54,MATCH(DOCU_DCF!$B16,DOCU_IS!$A$10:$A$54,0),MATCH(DOCU_DCF!F$13,DOCU_IS!$A$10:$F$10,0)) -> 700969 | G16: =INDEX(DOCU_IS!$A$10:$F$54,MATCH(DOCU_DCF!$B16,DOCU_IS!$A$10:$A$54,0),MATCH(DOCU_DCF!G$13,DOCU_IS!$A$10:$F$10,0)) -> 973971 | H16: =INDEX(DOCU_IS!$A$10:$F$54,MATCH(DOCU_DCF!$B16,DOCU_IS!$A$10:$A$54,0),MATCH(DOCU_DCF!H$13,DOCU_IS!$A$10:$F$10,0)) -> 1453047 | I16: =INDEX(DOCU_IS!$A$10:$F$54,MATCH(DOCU_DCF!$B16,DOCU_IS!$A$10:$A$54,0),MATCH(DOCU_DCF!I$13,DOCU_IS!$A$10:$F$10,0)) -> 2107213 | J16: =INDEX(DOCU_IS!$A$10:$F$54,MATCH(DOCU_DCF!$B16,DOCU_IS!$A$10:$A$54,0),MATCH(DOCU_DCF!J$13,DOCU_IS!$A$10:$F$10,0)) -> 2515915 | K16: 2746000 | L16: 2938220 | M16: 3158586.5 | N16: 3411273.42 | O16: 3684175.294 | P16: 3978909.317 | Q16: 4297222.062
B17: Cost of revenue - subscription | F17: =INDEX(DOCU_IS!$A$10:$F$54,MATCH(DOCU_DCF!$B17,DOCU_IS!$A$10:$A$54,0),MATCH(DOCU_DCF!F$13,DOCU_IS!$A$10:$F$10,0)) -> 117764 | G17: =INDEX(DOCU_IS!$A$10:$F$54,MATCH(DOCU_DCF!$B17,DOCU_IS!$A$10:$A$54,0),MATCH(DOCU_DCF!G$13,DOCU_IS!$A$10:$F$10,0)) -> 163931 | H17: =INDEX(DOCU_IS!$A$10:$F$54,MATCH(DOCU_DCF!$B17,DOCU_IS!$A$10:$A$54,0),MATCH(DOCU_DCF!H$13,DOCU_IS!$A$10:$F$10,0)) -> 259992 | I17: =INDEX(DOCU_IS!$A$10:$F$54,MATCH(DOCU_DCF!$B17,DOCU_IS!$A$10:$A$54,0),MATCH(DOCU_DCF!I$13,DOCU_IS!$A$10:$F$10,0)) -> 343661 | J17: =INDEX(DOCU_IS!$A$10:$F$54,MATCH(DOCU_DCF!$B17,DOCU_IS!$A$10:$A$54,0),MATCH(DOCU_DCF!J$13,DOCU_IS!$A$10:$F$10,0)) -> 426077 | K17: =K14*K41 -> 453900 | L17: 487009.965 | M17: 523535.7124 | N17: 565418.5694 | O17: 610652.0549 | P17: 659504.2193 | Q17: 712264.5569
B18: Cost of revenue - professional services & other cost of revenue | F18: =INDEX(DOCU_IS!$A$10:$F$54,MATCH(DOCU_DCF!$B18,DOCU_IS!$A$10:$A$54,0),MATCH(DOCU_DCF!F$13,DOCU_IS!$A$10:$F$10,0)) -> 74657 | G18: =INDEX(DOCU_IS!$A$10:$F$54,MATCH(DOCU_DCF!$B18,DOCU_IS!$A$10:$A$54,0),MATCH(DOCU_DCF!G$13,DOCU_IS!$A$10:$F$10,0)) -> 79303 | H18: =INDEX(DOCU_IS!$A$10:$F$54,MATCH(DOCU_DCF!$B18,DOCU_IS!$A$10:$A$54,0),MATCH(DOCU_DCF!H$13,DOCU_IS!$A$10:$F$10,0)) -> 104066 | I18: =INDEX(DOCU_IS!$A$10:$F$54,MATCH(DOCU_DCF!$B18,DOCU_IS!$A$10:$A$54,0),MATCH(DOCU_DCF!I$13,DOCU_IS!$A$10:$F$10,0)) -> 122790 | J18: =INDEX(DOCU_IS!$A$10:$F$54,MATCH(DOCU_DCF!$B18,DOCU_IS!$A$10:$A$54,0),MATCH(DOCU_DCF!J$13,DOCU_IS!$A$10:$F$10,0)) -> 110011 | K18: 114000 | L18: 104674.0875 | M18: 106602.2944 | N18: 108734.3403 | O18: 110525.2588 | P18: 119367.2795 | Q18: 128916.6619
B19: Gross Profit | F19: =F16-F17-F18 -> 508548 | G19: 730737 | H19: 1088989 | I19: 1640762 | J19: 1979827 | K19: 2178100 | L19: 2346535.948 | M19: 2528448.493 | N19: 2737120.51 | O19: 2962997.98 | P19: 3200037.818 | Q19: 3456040.844
B21: Sales & marketing expense | F21: =INDEX(DOCU_IS!$A$10:$F$54,MATCH(DOCU_DCF!$B21,DOCU_IS!$A$10:$A$54,0),MATCH(DOCU_DCF!F$13,DOCU_IS!$A$10:$F$10,0)) -> 539606 | G21: =INDEX(DOCU_IS!$A$10:$F$54,MATCH(DOCU_DCF!$B21,DOCU_IS!$A$10:$A$54,0),MATCH(DOCU_DCF!G$13,DOCU_IS!$A$10:$F$10,0)) -> 591379 | H21: =INDEX(DOCU_IS!$A$10:$F$54,MATCH(DOCU_DCF!$B21,DOCU_IS!$A$10:$A$54,0),MATCH(DOCU_DCF!H$13,DOCU_IS!$A$10:$F$10,0)) -> 798625 | I21: =INDEX(DOCU_IS!$A$10:$F$54,MATCH(DOCU_DCF!$B21,DOCU_IS!$A$10:$A$54,0),MATCH(DOCU_DCF!I$13,DOCU_IS!$A$10:$F$10,0)) -> 1076527 | J21: =INDEX(DOCU_IS!$A$10:$F$54,MATCH(DOCU_DCF!$B21,DOCU_IS!$A$10:$A$54,0),MATCH(DOCU_DCF!J$13,DOCU_IS!$A$10:$F$10,0)) -> 1242711 | K21: =K16*K43 -> 1235700 | L21: 1248743.5 | M21: 1263434.6 | N21: 1279227.532 | O21: 1289461.353 | P21: 1392618.261 | Q21: 1504027.722
B22: Research & development expense | F22: =INDEX(DOCU_IS!$A$10:$F$54,MATCH(DOCU_DCF!$B22,DOCU_IS!$A$10:$A$54,0),MATCH(DOCU_DCF!F$13,DOCU_IS!$A$10:$F$10,0)) -> 185968 | G22: =INDEX(DOCU_IS!$A$10:$F$54,MATCH(DOCU_DCF!$B22,DOCU_IS!$A$10:$A$54,0),MATCH(DOCU_DCF!G$13,DOCU_IS!$A$10:$F$10,0)) -> 185552 | H22: =INDEX(DOCU_IS!$A$10:$F$54,MATCH(DOCU_DCF!$B22,DOCU_IS!$A$10:$A$54,0),MATCH(DOCU_DCF!H$13,DOCU_IS!$A$10:$F$10,0)) -> 271522 | I22: =INDEX(DOCU_IS!$A$10:$F$54,MATCH(DOCU_DCF!$B22,DOCU_IS!$A$10:$A$54,0),MATCH(DOCU_DCF!I$13,DOCU_IS!$A$10:$F$10,0)) -> 393362 | J22: =INDEX(DOCU_IS!$A$10:$F$54,MATCH(DOCU_DCF!$B22,DOCU_IS!$A$10:$A$54,0),MATCH(DOCU_DCF!J$13,DOCU_IS!$A$10:$F$10,0)) -> 480584 | K22: =K16*K44 -> 521740 | L22: 550916.25 | M22: 584338.5025 | N22: 622557.3992 | O22: 663151.5528 | P22: 716203.6771 | Q22: 773499.9712
B23: General & administrative expense | F23: =INDEX(DOCU_IS!$A$10:$F$54,MATCH(DOCU_DCF!$B23,DOCU_IS!$A$10:$A$54,0),MATCH(DOCU_DCF!F$13,DOCU_IS!$A$10:$F$10,0)) -> 209297 | G23: =INDEX(DOCU_IS!$A$10:$F$54,MATCH(DOCU_DCF!$B23,DOCU_IS!$A$10:$A$54,0),MATCH(DOCU_DCF!G$13,DOCU_IS!$A$10:$F$10,0)) -> 147315 | H23: =INDEX(DOCU_IS!$A$10:$F$54,MATCH(DOCU_DCF!$B23,DOCU_IS!$A$10:$A$54,0),MATCH(DOCU_DCF!H$13,DOCU_IS!$A$10:$F$10,0)) -> 192697 | I23: =INDEX(DOCU_IS!$A$10:$F$54,MATCH(DOCU_DCF!$B23,DOCU_IS!$A$10:$A$54,0),MATCH(DOCU_DCF!I$13,DOCU_IS!$A$10:$F$10,0)) -> 232757 | J23: =INDEX(DOCU_IS!$A$10:$F$54,MATCH(DOCU_DCF!$B23,DOCU_IS!$A$10:$A$54,0),MATCH(DOCU_DCF!J$13,DOCU_IS!$A$10:$F$10,0)) -> 316228 | K23: =K16*K45 -> 343250 | L23: 341568.075 | M23: 339548.0487 | N23: 336863.2502 | O23: 331575.7764 | P23: 358101.8385 | Q23: 386749.9856
B24: EBIT | F24: =F19-F21-F22-F23 -> -426323 | G24: -193509 | H24: -173855 | I24: -61884 | J24: -59696 | K24: 77410 | L24: 205308.1225 | M24: 341127.342 | N24: 498472.3285 | O24: 678809.2978 | P24: 733114.0417 | Q24: 791763.165
B25: NOL carryforward balance | J25: 2700000 | K25: =J25-K24 -> 2622590 | L25: =K25-L24 -> 2417281.877 | M25: 2076154.535 | N25: 1577682.207 | O25: 898872.9092 | P25: 165758.8675 | Q25: -626004.2975
B26: Taxes | D26: 0.25 | K26: =IF(K25>0,0,K25*$D$26*-1) -> 0 | L26: =IF(L25>0,0,L25*$D$26*-1) -> 0 | M26: 0 | N26: 0 | O26: 0 | P26: 0 | Q26: 156501.0744
B27: Tax-effected EBIT | F27: =F24-F26 -> -426323 | G27: -193509 | H27: -173855 | I27: -61884 | J27: -59696 | K27: 77410 | L27: 205308.1225 | M27: 341127.342 | N27: 498472.3285 | O27: 678809.2978 | P27: 733114.0417 | Q27: 635262.0906
B29: Depreciation and amortization | F29: =INDEX(DOCU_IS!$A$10:$F$60,MATCH(DOCU_DCF!$B29,DOCU_IS!$A$10:$A$60,0),MATCH(DOCU_DCF!F$13,DOCU_IS!$A$10:$F$10,0)) -> 38027 | G29: =INDEX(DOCU_IS!$A$10:$F$60,MATCH(DOCU_DCF!$B29,DOCU_IS!$A$10:$A$60,0),MATCH(DOCU_DCF!G$13,DOCU_IS!$A$10:$F$10,0)) -> 50182 | H29: =INDEX(DOCU_IS!$A$10:$F$60,MATCH(DOCU_DCF!$B29,DOCU_IS!$A$10:$A$60,0),MATCH(DOCU_DCF!H$13,DOCU_IS!$A$10:$F$10,0)) -> 71090 | I29: =INDEX(DOCU_IS!$A$10:$F$60,MATCH(DOCU_DCF!$B29,DOCU_IS!$A$10:$A$60,0),MATCH(DOCU_DCF!I$13,DOCU_IS!$A$10:$F$10,0)) -> 81913 | J29: =INDEX(DOCU_IS!$A$10:$F$60,MATCH(DOCU_DCF!$B29,DOCU_IS!$A$10:$A$60,0),MATCH(DOCU_DCF!J$13,DOCU_IS!$A$10:$F$10,0)) -> 86255 | K29: =-K30*K47 -> 90618 | L29: 85851.11563 | M29: 80938.77906 | N29: 75794.2313 | O29: 69999.33058 | P29: 75599.27702 | Q29: 81647.21919
B30: Capex | F30: =INDEX(DOCU_IS!$A$10:$F$59,MATCH(DOCU_DCF!$B30,DOCU_IS!$A$10:$A$59,0),MATCH(DOCU_DCF!F$13,DOCU_IS!$A$10:$F$10,0)) -> -30413 | G30: =INDEX(DOCU_IS!$A$10:$F$59,MATCH(DOCU_DCF!$B30,DOCU_IS!$A$10:$A$59,0),MATCH(DOCU_DCF!G$13,DOCU_IS!$A$10:$F$10,0)) -> -72046 | H30: =INDEX(DOCU_IS!$A$10:$F$59,MATCH(DOCU_DCF!$B30,DOCU_IS!$A$10:$A$59,0),MATCH(DOCU_DCF!H$13,DOCU_IS!$A$10:$F$10,0)) -> -82395 | I30: =INDEX(DOCU_IS!$A$10:$F$59,MATCH(DOCU_DCF!$B30,DOCU_IS!$A$10:$A$59,0),MATCH(DOCU_DCF!I$13,DOCU_IS!$A$10:$F$10,0)) -> -61396 | J30: =INDEX(DOCU_IS!$A$10:$F$59,MATCH(DOCU_DCF!$B30,DOCU_IS!$A$10:$A$59,0),MATCH(DOCU_DCF!J$13,DOCU_IS!$A$10:$F$10,0)) -> -77654 | K30: =-K46*K16 -> -82380 | L30: =-L46*L16 -> -80801.05 | M30: -78964.6625 | N30: -76753.65195 | O30: -73683.50587 | P30: -79578.18634 | Q30: -85944.44125
B31: Change in Net Working Capital | G31: =-(G89) -> 47699 | H31: =-(H89) -> 163618 | I31: 115099 | J31: 5717 | K31: 21132 | L31: 38444 | M31: 44073.3 | N31: 50537.384 | O31: 54580.37472 | P31: =-(P89) -> 58946.8047 | Q31: =-(Q89) -> 63662.54907
B32: Unlevered free cash flows | F32: =SUM(F27:F31) -> -418709 | G32: -167674 | H32: -21542 | I32: 73732 | J32: -45378 | K32: 106780 | L32: 248802.1881 | M32: 387174.7586 | N32: 548050.2918 | O32: 729705.4973 | P32: 788081.9371 | Q32: 694627.4176
F35: Historical | K35: Projected
F36: =F13 -> 2019 | G36: =F36+1 -> 2020 | H36: 2021 | I36: 2022 | J36: 2023 | K36: 2024 | L36: 2025 | M36: 2026 | N36: 2027 | O36: 2028 | P36: 2029 | Q36: 2030
B37: Assumptions
B38: Subscription Growth | G38: =G14/F14-1 -> 0.3839423075 | H38: 0.5040311912 | I38: 0.4747910992 | J38: 0.1987486207 | K38: =DOCU_Forecast!H12 -> 0.09328685022 | L38: =DOCU_Forecast!I12 -> 0.07294550562 | M38: =DOCU_Forecast!J12 -> 0.075 | N38: =DOCU_Forecast!K12 -> 0.08 | O38: =DOCU_Forecast!L12 -> 0.08 | P38: 0.08 | Q38: 0.08
B39: Professional Growth | G39: 0.4876715266 | H39: 0.290804929 | I39: -0.02385205862 | J39: 0.05428861469 | K39: =DOCU_Forecast!H14 -> 0.03067617782 | L39: =DOCU_Forecast!I14 -> -0.03348026316 | M39: =DOCU_Forecast!J14 -> 0.075 | N39: =DOCU_Forecast!K14 -> 0.08 | O39: =DOCU_Forecast!L14 -> 0.08 | P39: 0.08 | Q39: 0.08
B40: Sales Growth | G40: 0.3894637281 | H40: 0.4918791217 | I40: 0.4502029184 | J40: 0.1939538148 | K40: =DOCU_Forecast!H8 -> 0.09145181773 | L40: =DOCU_Forecast!I8 -> 0.07 | M40: =DOCU_Forecast!J8 -> 0.075 | N40: =DOCU_Forecast!K8 -> 0.08 | O40: =DOCU_Forecast!L8 -> 0.08 | P40: 0.08 | Q40: 0.08 | T40: 2028
B41: COGS-subscription (as a % of subscription) | F41: =F17/F14 -> 0.1774470849 | G41: 0.1784840543 | H41: 0.188209472 | I41: 0.1686868518 | J41: 0.1744660604 | K41: 0.17 | L41: =K41+$U41 -> 0.17 | M41: 0.17 | N41: 0.17 | O41: 0.17 | P41: 0.17 | Q41: 0.17 | S41: Step | T41: 0.17 | U41: =(T41-K41)/($O$36-$K$36) -> 0
B42: COGS-professional (as a % of professional) | F42: 2.000884434 | G42: 1.428676947 | H42: 1.452421493 | I42: 1.755622596 | J42: 1.491917329 | K42: 1.5 | L42: 1.425 | M42: 1.35 | N42: 1.275 | O42: 1.2 | P42: 1.2 | Q42: 1.2 | S42: Step | T42: 1.2 | U42: -0.075
B43: Sales & Marketing (as a % of revenue) | F43: =F21/F16 -> 0.769800091 | G43: =G21/G16 -> 0.6071833761 | H43: =H21/H16 -> 0.5496209001 | I43: =I21/I16 -> 0.5108771633 | J43: =J21/J16 -> 0.4939399781 | K43: 0.45 | L43: 0.425 | M43: 0.4 | N43: 0.375 | O43: 0.35 | P43: 0.35 | Q43: 0.35 | S43: Step | T43: 0.35 | U43: -0.025
B44: R&D expenses (as % of revenues) | F44: =F22/F16 -> 0.2653013186 | G44: =G22/G16 -> 0.1905108058 | H44: =H22/H16 -> 0.1868638798 | I44: =I22/I16 -> 0.1866740572 | J44: =J22/J16 -> 0.1910175821 | K44: 0.19 | L44: 0.1875 | M44: 0.185 | N44: 0.1825 | O44: 0.18 | P44: 0.18 | Q44: 0.18 | S44: Step | T44: 0.18 | U44: -0.0025
B45: G&A (as a % of revenue) | F45: =F23/F16 -> 0.2985823909 | G45: =G23/G16 -> 0.1512519367 | H45: =H23/H16 -> 0.1326158066 | I45: =I23/I16 -> 0.1104572722 | J45: =J23/J16 -> 0.1256910508 | K45: 0.125 | L45: 0.11625 | M45: 0.1075 | N45: 0.09875 | O45: 0.09 | P45: 0.09 | Q45: 0.09 | S45: Step | T45: 0.09 | U45: -0.00875
B46: Capex (as % of revenues) | F46: =-F30/F16 -> 0.04338708274 | G46: =-G30/G16 -> 0.07397140161 | H46: =-H30/H16 -> 0.05670497926 | I46: =-I30/I16 -> 0.02913611486 | J46: =-J30/J16 -> 0.03086511269 | K46: 0.03 | L46: 0.0275 | M46: 0.025 | N46: 0.0225 | O46: 0.02 | P46: 0.02 | Q46: 0.02 | S46: Step | T46: 0.02 | U46: -0.0025
B47: Depreciation and amortization (as % of capex) | F47: =-F29/F30 -> 1.250353467 | G47: =-G29/G30 -> 0.6965272187 | H47: =-H29/H30 -> 0.8627950725 | I47: =-I29/I30 -> 1.334174865 | J47: =-J29/J30 -> 1.110760553 | K47: 1.1 | L47: 1.0625 | M47: 1.025 | N47: 0.9875 | O47: 0.95 | P47: 0.95 | Q47: 0.95 | S47: Step | T47: 0.95 | U47: -0.0375
B48: Gross margin | F48: =F19/F16 -> 0.7254928535 | G48: =G19/G16 -> 0.750265665 | H48: =H19/H16 -> 0.7494520136 | I48: =I19/I16 -> 0.7786407924 | J48: =J19/J16 -> 0.7869212593
A50: x | B50: TERMINAL VALUE AND EQUITY VALUE PER SHARE
F52: Terminal Value - Perpetuity Growth | K52: Terminal Value - Exit Multiple | P52: Option Drag
F54: Unlevered FCF in terminal year | H54: =Q32 -> 694627.4176 | K54: Terminal year EBITDA | N54: =Q24+Q29 -> 873410.3842 | P54: Implied Equity Value (Using PG) | S54: =H63 -> 11869193.12
F55: Terminal growth rate | H55: 0.05 | K55: Terminal year EBITDA multiple | N55: 28.43 | P55: Basic Shares | S55: =I101 -> 201904
F56: Terminal value | H56: =H54*(1+H55)/(H57-H55) -> 17171447.13 | K56: Terminal value | N56: =N55*N54 -> 24831057.22 | P56: Value of Options | S56: =Option_Value!E30 -> 
F57: WACC - current | H57: =F135 -> 0.09247509153 | K57: WACC - current | N57: =F135 -> 0.09247509153 | P57: Implied Equity Value per Share | S57: =(S54-S56)/(S55+I108) -> 
F58: PV of Terminal Value | H58: =H56/(1+H57)^(Q36-J36) -> 9245408.189 | K58: PV of Terminal Value | N58: =PV(N57,Q36-J36,,N56)*-1 -> 13369476.55
P59: Treasury Outstanding Options
F60: PV of Unlevered Free Cash Flows | H60: =NPV(H57,K32:Q32) -> 2294359.933 | K60: PV of Unlevered Free Cash Flows | N60: =NPV(H57,K32:Q32) -> 2294359.933 | P60: Implied Equity Value | S60: =H63 -> 11869193.12
F61: Total Enterprise Value | H61: =H60+H58 -> 11539768.12 | K61: Total Enterprise Value | N61: =N60+N58 -> 15663836.49 | P61: Diluted Shares Outstanding | S61: =N109 -> 221753
F62: Net debt + Preferred stock + NCI | H62: =DOCU_BS!B49+DOCU_BS!B51+DOCU_BS!B56-DOCU_BS!B16-DOCU_BS!B17-DOCU_BS!B27 -> -329425 | K62: Net debt + Preferred stock + NCI | N62: =DOCU_BS!B49+DOCU_BS!B51+DOCU_BS!B56-DOCU_BS!B16-DOCU_BS!B17-DOCU_BS!B27 -> -329425 | P62: Total Proceeds | S62: =N106 -> 38121.08
F63: Implied Equity Value | H63: =H61-H62 -> 11869193.12 | K63: Implied Equity Value | N63: =N61-N62 -> 15993261.49 | P63: Implied Equity Value per Share | S63: =(S60+S62)/S61 -> 53.69629363
F64: Diluted Shares Outstanding | H64: =I109 -> 221101.1347 | K64: Diluted Shares Outstanding | N64: =I109 -> 221101.1347
F65: Implied Equity Value per Share | H65: =H63/H64 -> 53.68218999 | K65: Implied Equity Value per Share | N65: =N63/N64 -> 72.33459704
A69: x | B69: WORKING CAPITAL SCHEDULE
F72: Historical | K72: Projected
F73: =F13 -> 2019 | G73: =F73+1 -> 2020 | H73: 2021 | I73: 2022 | J73: 2023 | K73: 2024 | L73: 2025 | M73: 2026 | N73: 2027 | O73: 2028 | P73: =O73+1 -> 2029 | Q73: =P73+1 -> 2030
B74: Total current assets | F74: =INDEX(DOCU_BS!$10:$67,MATCH(DOCU_DCF!$B74,DOCU_BS!$A$10:$A$67,0),MATCH(DOCU_DCF!F$73,DOCU_BS!$A$10:$F$10,0)) -> 984521 | G74: =INDEX(DOCU_BS!$10:$67,MATCH(DOCU_DCF!$B74,DOCU_BS!$A$10:$A$67,0),MATCH(DOCU_DCF!G$73,DOCU_BS!$A$10:$F$10,0)) -> 943890 | H74: =INDEX(DOCU_BS!$10:$67,MATCH(DOCU_DCF!$B74,DOCU_BS!$A$10:$A$67,0),MATCH(DOCU_DCF!H$73,DOCU_BS!$A$10:$F$10,0)) -> 1162348 | I74: =INDEX(DOCU_BS!$10:$67,MATCH(DOCU_DCF!$B74,DOCU_BS!$A$10:$A$67,0),MATCH(DOCU_DCF!I$73,DOCU_BS!$A$10:$F$10,0)) -> 1319596 | J74: =INDEX(DOCU_BS!$10:$67,MATCH(DOCU_DCF!$B74,DOCU_BS!$A$10:$A$67,0),MATCH(DOCU_DCF!J$73,DOCU_BS!$A$10:$F$10,0)) -> 1631004
B75: Cash & cash equivalents | F75: =INDEX(DOCU_BS!$10:$67,MATCH(DOCU_DCF!$B75,DOCU_BS!$A$10:$A$67,0),MATCH(DOCU_DCF!F$73,DOCU_BS!$A$10:$F$10,0)) -> 517811 | G75: =INDEX(DOCU_BS!$10:$67,MATCH(DOCU_DCF!$B75,DOCU_BS!$A$10:$A$67,0),MATCH(DOCU_DCF!G$73,DOCU_BS!$A$10:$F$10,0)) -> 241203 | H75: =INDEX(DOCU_BS!$10:$67,MATCH(DOCU_DCF!$B75,DOCU_BS!$A$10:$A$67,0),MATCH(DOCU_DCF!H$73,DOCU_BS!$A$10:$F$10,0)) -> 566055 | I75: =INDEX(DOCU_BS!$10:$67,MATCH(DOCU_DCF!$B75,DOCU_BS!$A$10:$A$67,0),MATCH(DOCU_DCF!I$73,DOCU_BS!$A$10:$F$10,0)) -> 509059 | J75: =INDEX(DOCU_BS!$10:$67,MATCH(DOCU_DCF!$B75,DOCU_BS!$A$10:$A$67,0),MATCH(DOCU_DCF!J$73,DOCU_BS!$A$10:$F$10,0)) -> 721895
B76: Investments | F76: =INDEX(DOCU_BS!$10:$67,MATCH(DOCU_DCF!$B76,DOCU_BS!$A$10:$A$67,0),MATCH(DOCU_DCF!F$73,DOCU_BS!$A$10:$F$10,0)) -> 251203 | G76: =INDEX(DOCU_BS!$10:$67,MATCH(DOCU_DCF!$B76,DOCU_BS!$A$10:$A$67,0),MATCH(DOCU_DCF!G$73,DOCU_BS!$A$10:$F$10,0)) -> 414939 | H76: =INDEX(DOCU_BS!$10:$67,MATCH(DOCU_DCF!$B76,DOCU_BS!$A$10:$A$67,0),MATCH(DOCU_DCF!H$73,DOCU_BS!$A$10:$F$10,0)) -> 207450 | I76: =INDEX(DOCU_BS!$10:$67,MATCH(DOCU_DCF!$B76,DOCU_BS!$A$10:$A$67,0),MATCH(DOCU_DCF!I$73,DOCU_BS!$A$10:$F$10,0)) -> 293763 | J76: =INDEX(DOCU_BS!$10:$67,MATCH(DOCU_DCF!$B76,DOCU_BS!$A$10:$A$67,0),MATCH(DOCU_DCF!J$73,DOCU_BS!$A$10:$F$10,0)) -> 309771
B77: Add:
B78: Deferred contract acquisition costs - noncurrent | F78: =INDEX(DOCU_BS!$10:$67,MATCH(DOCU_DCF!$B78,DOCU_BS!$A$10:$A$67,0),MATCH(DOCU_DCF!F$73,DOCU_BS!$A$10:$F$10,0)) -> 112583 | G78: =INDEX(DOCU_BS!$10:$67,MATCH(DOCU_DCF!$B78,DOCU_BS!$A$10:$A$67,0),MATCH(DOCU_DCF!G$73,DOCU_BS!$A$10:$F$10,0)) -> 153333 | H78: =INDEX(DOCU_BS!$10:$67,MATCH(DOCU_DCF!$B78,DOCU_BS!$A$10:$A$67,0),MATCH(DOCU_DCF!H$73,DOCU_BS!$A$10:$F$10,0)) -> 260130 | I78: =INDEX(DOCU_BS!$10:$67,MATCH(DOCU_DCF!$B78,DOCU_BS!$A$10:$A$67,0),MATCH(DOCU_DCF!I$73,DOCU_BS!$A$10:$F$10,0)) -> 311835 | J78: =INDEX(DOCU_BS!$10:$67,MATCH(DOCU_DCF!$B78,DOCU_BS!$A$10:$A$67,0),MATCH(DOCU_DCF!J$73,DOCU_BS!$A$10:$F$10,0)) -> 350899
B79: Total non-cash current assets | F79: =F74-F75-F76+F78 -> 328090 | G79: =G74-G75-G76+G78 -> 441081 | H79: 648973 | I79: 828609 | J79: 950237
B81: Total current liabilities | F81: =INDEX(DOCU_BS!$10:$67,MATCH(DOCU_DCF!$B81,DOCU_BS!$A$10:$A$67,0),MATCH(DOCU_DCF!F$73,DOCU_BS!$A$10:$F$10,0)) -> 516313 | G81: =INDEX(DOCU_BS!$10:$67,MATCH(DOCU_DCF!$B81,DOCU_BS!$A$10:$A$67,0),MATCH(DOCU_DCF!G$73,DOCU_BS!$A$10:$F$10,0)) -> 693965 | H81: =INDEX(DOCU_BS!$10:$67,MATCH(DOCU_DCF!$B81,DOCU_BS!$A$10:$A$67,0),MATCH(DOCU_DCF!H$73,DOCU_BS!$A$10:$F$10,0)) -> 1093173 | I81: =INDEX(DOCU_BS!$10:$67,MATCH(DOCU_DCF!$B81,DOCU_BS!$A$10:$A$67,0),MATCH(DOCU_DCF!I$73,DOCU_BS!$A$10:$F$10,0)) -> 1371639 | J81: =INDEX(DOCU_BS!$10:$67,MATCH(DOCU_DCF!$B81,DOCU_BS!$A$10:$A$67,0),MATCH(DOCU_DCF!J$73,DOCU_BS!$A$10:$F$10,0)) -> 2208322
B82: Convertible senior notes - current | F82: =INDEX(DOCU_BS!$10:$67,MATCH(DOCU_DCF!$B82,DOCU_BS!$A$10:$A$67,0),MATCH(DOCU_DCF!F$73,DOCU_BS!$A$10:$F$10,0)) -> 0 | G82: =INDEX(DOCU_BS!$10:$67,MATCH(DOCU_DCF!$B82,DOCU_BS!$A$10:$A$67,0),MATCH(DOCU_DCF!G$73,DOCU_BS!$A$10:$F$10,0)) -> 0 | H82: =INDEX(DOCU_BS!$10:$67,MATCH(DOCU_DCF!$B82,DOCU_BS!$A$10:$A$67,0),MATCH(DOCU_DCF!H$73,DOCU_BS!$A$10:$F$10,0)) -> 20469 | I82: =INDEX(DOCU_BS!$10:$67,MATCH(DOCU_DCF!$B82,DOCU_BS!$A$10:$A$67,0),MATCH(DOCU_DCF!I$73,DOCU_BS!$A$10:$F$10,0)) -> 0 | J82: =INDEX(DOCU_BS!$10:$67,MATCH(DOCU_DCF!$B82,DOCU_BS!$A$10:$A$67,0),MATCH(DOCU_DCF!J$73,DOCU_BS!$A$10:$F$10,0)) -> 722887
B83: Operating lease liabilities-current | F83: =INDEX(DOCU_BS!$10:$67,MATCH(DOCU_DCF!$B83,DOCU_BS!$A$10:$A$67,0),MATCH(DOCU_DCF!F$73,DOCU_BS!$A$10:$F$10,0)) -> 0 | G83: =INDEX(DOCU_BS!$10:$67,MATCH(DOCU_DCF!$B83,DOCU_BS!$A$10:$A$67,0),MATCH(DOCU_DCF!G$73,DOCU_BS!$A$10:$F$10,0)) -> 20728 | H83: =INDEX(DOCU_BS!$10:$67,MATCH(DOCU_DCF!$B83,DOCU_BS!$A$10:$A$67,0),MATCH(DOCU_DCF!H$73,DOCU_BS!$A$10:$F$10,0)) -> 32971 | I83: =INDEX(DOCU_BS!$10:$67,MATCH(DOCU_DCF!$B83,DOCU_BS!$A$10:$A$67,0),MATCH(DOCU_DCF!I$73,DOCU_BS!$A$10:$F$10,0)) -> 37404 | J83: =INDEX(DOCU_BS!$10:$67,MATCH(DOCU_DCF!$B83,DOCU_BS!$A$10:$A$67,0),MATCH(DOCU_DCF!J$73,DOCU_BS!$A$10:$F$10,0)) -> 24055
B84: Add:
B85: Contract liabilities - noncurrent | F85: =INDEX(DOCU_BS!$10:$67,MATCH(DOCU_DCF!$B85,DOCU_BS!$A$10:$A$67,0),MATCH(DOCU_DCF!F$73,DOCU_BS!$A$10:$F$10,0)) -> 7712 | G85: =INDEX(DOCU_BS!$10:$67,MATCH(DOCU_DCF!$B85,DOCU_BS!$A$10:$A$67,0),MATCH(DOCU_DCF!G$73,DOCU_BS!$A$10:$F$10,0)) -> 11478 | H85: =INDEX(DOCU_BS!$10:$67,MATCH(DOCU_DCF!$B85,DOCU_BS!$A$10:$A$67,0),MATCH(DOCU_DCF!H$73,DOCU_BS!$A$10:$F$10,0)) -> 16492 | I85: =INDEX(DOCU_BS!$10:$67,MATCH(DOCU_DCF!$B85,DOCU_BS!$A$10:$A$67,0),MATCH(DOCU_DCF!I$73,DOCU_BS!$A$10:$F$10,0)) -> 16725 | J85: =INDEX(DOCU_BS!$10:$67,MATCH(DOCU_DCF!$B85,DOCU_BS!$A$10:$A$67,0),MATCH(DOCU_DCF!J$73,DOCU_BS!$A$10:$F$10,0)) -> 16925
B86: Total non-debt current liabilities | F86: =F81-F82-F83+F85 -> 524025 | G86: =G81-G82-G83+G85 -> 684715 | H86: =H81-H82-H83+H85 -> 1056225 | I86: =I81-I82-I83+I85 -> 1350960 | J86: =J81-J82-J83+J85 -> 1478305
B88: Non-cash Net Working Capital | F88: =F79-F86 -> -195935 | G88: =G79-G86 -> -243634 | H88: =H79-H86 -> -407252 | I88: =I79-I86 -> -522351 | J88: =J79-J86 -> -528068 | K88: =K94*K16 -> -549200 | L88: -587644 | M88: -631717.3 | N88: -682254.684 | O88: -736835.0587 | P88: -795781.8634 | Q88: -859444.4125
B89: Change in NWC | G89: =G88-F88 -> -47699 | H89: -163618 | I89: -115099 | J89: -5717 | K89: -21132 | L89: -38444 | M89: -44073.3 | N89: -50537.384 | O89: -54580.37472 | P89: -58946.8047 | Q89: -63662.54907
F92: Historical | K92: Projected
F93: =F73 -> 2019 | G93: =F93+1 -> 2020 | H93: 2021 | I93: 2022 | J93: 2023 | K93: 2024 | L93: 2025 | M93: 2026 | N93: 2027 | O93: 2028 | P93: =O93+1 -> 2029 | Q93: =P93+1 -> 2030
B94: Non-cash NWC as a % of Sale | F94: =F88/F16 -> -0.279520207 | G94: =G88/G16 -> -0.2501450249 | H94: =H88/H16 -> -0.2802744853 | I94: =I88/I16 -> -0.2478871381 | J94: =J88/J16 -> -0.2098910337 | K94: -0.2 | L94: =K94+$U$94 -> -0.2 | M94: -0.2 | N94: -0.2 | O94: -0.2 | P94: -0.2 | Q94: -0.2 | S94: Step | T94: -0.2 | U94: =(T94-K94)/(Q93-K93) -> 0
A97: x | B97: DILUTED SHARES
F100: Treasury with a Twist- All Outstanding Options | K100: Treasury Method- All Outstanding Options
F101: Basic share count | I101: 201904 | K101: Basic share count | N101: 201904
F102: Outstanding options | I102: 2228 | K102: Oustanding options | N102: 2228
F103: Exercise price | I103: 17.11 | K103: Exercise price | N103: 17.11
F104: Current share price | I104: =C4 -> 58.48 | K104: Current share price | N104: =C4 -> 58.48
F105: In-the-money options | I105: =IF(I104>I103,I102,0) -> 2228 | K105: In-the-money options | N105: =IF(N104>N103,N102,0) -> 2228
F106: Total proceeds | I106: =I105*I103 -> 38121.08 | K106: Total proceeds | N106: =N105*N103 -> 38121.08
F107: Total shares repurchased | I107: =I106/I104 -> 651.8652531
F108: Unvested RSUs | I108: 17621 | K108: Unvested RSUs | N108: 17621
F109: Diluted shares outstanding | I109: =I101+I105+I108-I107 -> 221101.1347 | K109: Diluted shares outstanding | N109: =N108+N105+N101 -> 221753
A112: x | B112: WACC
F114: Current
B115: Percent of Capital
B116: Total debt | F116: =DOCU_BS!B49+DOCU_BS!B51+DOCU_BS!B56 -> 888290
B117: Share price | F117: =C4 -> 58.48
B118: Shares outstanding | F118: =I109 -> 221101.1347
B119: Market value of equity | F119: =F118*F117 -> 12929994.36
B121: Weight of debt | F121: =F116/(F116+F119) -> 0.0642836677
B122: Weight of equity | F122: =F119/(F119+F116) -> 0.9357163323
B124: Cost of debt
B125: Default Spread | F125: 0.0221
B126: Pre-tax cost of debt | F126: =F125+F130 -> 0.06308
B127: Marginal tax rate | F127: 0.25
B129: Cost of equity
B130: Risk-free rate | F130: 0.04098
B131: Market risk premium (Rm - Rf) | F131: 0.0418
B132: Beta | F132: =C154 -> 1.306170602
B133: Cost of equity | F133: =F130+F131*F132 -> 0.09557793118
B135: Weighted average cost of capital | F135: =F126*F121*(1-F127)+F133*F122 -> 0.09247509153
A137: x | B137: BOTTOM UP BETA
E140: MV | F140: Book Value | G140: Debt/ | H140: Reg | I140: Unlevered | K140: Marginal
B141: Company | C141: Ticker | E141: Equity | F141: Debt | G141: Equity | H141: Beta | I141: Beta | K141: Tax Rate
B142: RingCentral, Inc | C142: RNG | E142: 3126.8 | F142: =1374.19+222.2 -> 1596.39 | G142: =F142/E142 -> 0.5105507228 | H142: 0.92 | I142: =H142/(1+((1-K142)*G142)) -> 0.6652623643 | K142: 0.25
B143: Splunk Inc | C143: SPLK | E143: 26319.1 | F143: =1258.02+2003.55 -> 3261.57 | G143: 0.1239240704 | H143: 1 | I143: =H143/(1+((1-K143)*G143)) -> 0.9149607543 | K143: =$K$142 -> 0.25
B144: Palentir Technologies, Inc | C144: PLTR | E144: 55163.4 | F144: =54.18+175.22 -> 229.4 | G144: 0.004158554404 | H144: 2.81 | I144: 2.801263096 | K144: 0.25
B145: Datadog, Inc | C145: DDOG | E145: 43216.6 | F145: =21.97+724.24+138.13 -> 884.34 | G145: 0.02046297025 | H145: 1.17 | I145: 1.152315157 | K145: 0.25
B146: Dynatrace Inc | C146: DT | E146: 14518.8 | F146: =16.29+58 -> 74.29 | G146: 0.005116814062 | H146: 1.08 | I146: 1.075871225 | K146: 0.25
B147: CoStar Group inc | C147: CSGP | E147: 35809.3 | F147: =40+66+990.5 -> 1096.5 | G147: 0.03062053712 | H147: 0.83 | I147: 0.8113666383 | K147: 0.25
B148: Adobe Inc | C148: ADBE | E148: 245773.3 | F148: =73+373+3634 -> 4080 | G148: 0.01660066411 | H148: 1.29 | I148: 1.274136368 | K148: 0.25
B150: Average unlevered beta | C150: =AVERAGE(I142:I148) -> 1.242167943
B151: Average unlevered beta (Full industry) | C151: 1.24
B152: =C3&" Debt/Equity ratio" -> DOCU Debt/Equity ratio | C152: =F116/F119 -> 0.06869995263
B153: =C3&" Tax Rate" -> DOCU Tax Rate | C153: =F127 -> 0.25
B154: =C3&" Levered Beta" -> DOCU Levered Beta | C154: =C150*(1+(1-C153)*C152) -> 1.306170602
A156: x | B156: SENSITIVITY ANALYSIS
G158: =H65 -> 53.68218999
C159: Beta Step | D159: 0.1 | F159: =F160-$D$159 -> 0.82 | G159: 98.36780695
F160: 0.92 | G160: 84.09826658
F161: 1.02 | G161: 73.39978832
F162: 1.12 | G162: 65.0817478
F163: =F164-$D$159 -> 1.22 | G163: 58.42986923
E164: Beta | F164: 1.32 | G164: 52.98966191
F165: =F164+$D$159 -> 1.42 | G165: 48.45815753
F166: =F165+$D$159 -> 1.52 | G166: 44.62562293
F167: 1.62 | G167: 41.34225687
F168: 1.72 | G168: 38.49820996
F169: 1.82 | G169: 36.0110981
F170: 1.92 | G170: 33.81792353
C172: Exit Multiple Step | D172: 1
C173: Exit Multiple
C174: =D174-$D$172 -> 20.4 | D174: 21.4 | E174: 22.4 | F174: 23.4 | G174: 24.4 | H174: =I174-$D$172 -> 25.4 | I174: =J174-$D$172 -> 26.4 | J174: =K174-$D$172 -> 27.4 | K174: 28.4 | L174: =K174+$D$172 -> 29.4 | M174: =L174+$D$172 -> 30.4
B175: =N65 -> 72.33459704 | C175: 55.25560964 | D175: 57.3825072 | E175: 59.50940476 | F175: 61.63630232 | G175: 63.76319988 | H175: 65.89009744 | I175: 68.016995 | J175: 70.14389255 | K175: 72.27079011 | L175: 74.39768767 | M175: 76.52458523
C178: WACC Step | D178: 0.01
C179: Growth Step | D179: 0.005
E181: WACC
D182: =H65 -> 53.68218999 | E182: =F182-$D$178 -> 0.052 | F182: 0.062 | G182: 0.072 | H182: =I182-$D$178 -> 0.082 | I182: 0.092 | J182: =I182+$D$178 -> 0.102 | K182: =J182+$D$178 -> 0.112 | L182: =K182+$D$178 -> 0.122 | M182: =L182+$D$178 -> 0.132
D183: 0.005 | E183: 60.99846375 | F183: 49.69893828 | G183: 41.794945 | H183: 35.962861 | I183: 31.48764477 | J183: 27.9491344 | K183: 25.08425335 | L183: 22.71987973 | M183: 20.73743096
D184: =D183+$D$179 -> 0.01 | E184: 66.8691567 | F184: 53.39301282 | G184: 44.28664499 | H184: 37.7286718 | I184: 32.78620476 | J184: 28.93197214 | K184: 25.84548753 | L184: 23.32073507 | M184: 21.21925542
D185: =D184+$D$179 -> 0.015 | E185: 74.32652343 | F185: 57.87306067 | G185: 47.21548532 | H185: 39.75803645 | I185: 34.25340891 | J185: 30.02777974 | K185: 26.68519946 | L185: 23.97774512 | M185: 21.74226146
D186: 0.02 | E186: 84.11431726 | F186: 63.41978657 | G186: 50.70756418 | H186: 42.11471797 | I186: 35.92439141 | J186: 31.25722241 | K186: 27.61618443 | L186: 24.69916792 | M186: 22.31196446
D187: 0.025 | E187: 97.52721992 | F187: 70.46562759 | G187: 54.94263854 | H187: 44.8848524 | I187: 37.84477429 | J187: 32.64633296 | K187: 28.65417916 | L187: 25.49496421 | M187: 22.93491073
D188: 0.03 | E188: 117.0368965 | F188: 79.71329391 | G188: 60.18606395 | H188: 48.18770498 | I188: 40.07489634 | J188: 34.22837553 | K188: 29.81875862 | L188: 26.37726009 | M188: 23.61893017
D189: 0.035 | E189: 148.0228535 | F189: 92.38602185 | G189: 66.84663135 | H189: 52.19329216 | I189: 42.69626787 | J189: 36.04654386 | K189: 31.13458217 | L189: 27.36096928 | M189: 24.37346708
D190: 0.04 | E190: 204.8304412 | F190: 110.8190807 | G190: 75.58862607 | H190: 57.15259057 | I190: 45.82174932 | J190: 38.15796514 | K190: 32.63315898 | L190: 28.46464302 | M190: 25.21001887
D191: 0.045 | E191: 342.7917257 | F191: 140.0951152 | G191: 87.5683966 | H191: 63.4522399 | I191: 49.61222681 | J191: 40.63981121 | K191: 34.35540398 | L191: 29.71165101 | M191: 26.14272603
D192: 0.05 | E192: 1170.559433 | F192: 193.7678453 | G192: 104.9935174 | H192: 71.72052964 | I192: 54.30519895 | J192: 43.59893537 | K192: 36.35543042 | L192: 31.13185455 | M192: 27.18917797

Sheet DOCU_Forecast
B2: Key metrics (Annual)
C3: 2019 | D3: =C3+1 -> 2020 | E3: =D3+1 -> 2021 | F3: 2022 | G3: 2023 | H3: 2024 | I3: 2025 | J3: 2026 | K3: 2027 | L3: 2028
B4: Revenue | C4: 700969 | D4: 973971 | E4: 1453047 | F4: 2107213 | G4: 2515915 | H4: 2746000 | I4: =H4*(1+I8) -> 2938220 | J4: =I4*(1+J8) -> 3158586.5 | K4: =J4*(1+K8) -> 3411273.42 | L4: =K4*(1+L8) -> 3684175.294
B5: Direct (%) | C5: 0.85 | D5: 0.86 | E5: 0.87 | F5: 0.88 | G5: 0.87 | H5: 0.86 | I5: 0.855 | J5: =I5 -> 0.855 | K5: 0.855 | L5: 0.855
B6: Digital (%) | C6: 0.15 | D6: 0.14 | E6: 0.13 | F6: 0.12 | G6: 0.13 | H6: 0.14 | I6: 0.145 | J6: 0.145 | K6: 0.145 | L6: 0.145
B8: Revenue growth | H8: =H4/G4-1 -> 0.09145181773 | I8: 0.07 | J8: 0.075 | K8: 0.08 | L8: 0.08
B10: Subscription Revenue | C10: 663657 | D10: 918463 | E10: 1381397 | F10: 2037272 | G10: 2442177 | H10: 2670000 | I10: =I4*I11 -> 2864764.5 | J10: =J4*J11 -> 3079621.837 | K10: =K4*K11 -> 3325991.585 | L10: =L4*L11 -> 3592070.911
B11: % of revenue | C11: =C10/C4 -> 0.9467708272 | D11: =D10/D4 -> 0.9430085701 | E11: 0.9506898263 | F11: 0.9668087659 | G11: 0.9706913787 | H11: 0.975 | I11: 0.975 | J11: 0.975 | K11: 0.975 | L11: 0.975
B12: % growth | H12: =H10/G10-1 -> 0.09328685022 | I12: =I10/H10-1 -> 0.07294550562 | J12: =J10/I10-1 -> 0.075 | K12: =K10/J10-1 -> 0.08 | L12: =L10/K10-1 -> 0.08
B13: Professional Revenue | G13: =G4-G10 -> 73738 | H13: 76000 | I13: 73455.5 | J13: 78964.6625 | K13: 85281.8355 | L13: 92104.38234
B14: % growth | H14: =H13/G13-1 -> 0.03067617782 | I14: =I13/H13-1 -> -0.03348026316 | J14: =J13/I13-1 -> 0.075 | K14: =K13/J13-1 -> 0.08 | L14: =L13/K13-1 -> 0.08
B16: Customers (in thousands) | C16: 477 | D16: 589 | E16: 892 | F16: 1170 | G16: 1360 | H16: =G16*(1+H17) -> 1536.8 | I16: =H16*(1+I17) -> 1713.532 | J16: =I16*(1+J17) -> 1867.74988 | K16: =J16*(1+K17) -> 2017.16987 | L16: =K16*(1+L17) -> 2158.371761
B17: % growth | D17: =D16/C16-1 -> 0.2348008386 | E17: =E16/D16-1 -> 0.5144312394 | F17: =F16/E16-1 -> 0.3116591928 | G17: =G16/F16-1 -> 0.1623931624 | H17: 0.13 | I17: 0.115 | J17: 0.09 | K17: 0.08 | L17: 0.07
B18: Enterprise | C18: 56 | D18: 75 | E18: 125 | F18: 170 | G18: 211 | H18: =G18*(1+H19) -> 242.65 | I18: =H18*(1+I19) -> 274.1945 | J18: =I18*(1+J19) -> 301.61395 | K18: =J18*(1+K19) -> 327.2511358 | L18: =K18*(1+L19) -> 351.7949709
B19: % growth | D19: =D18/C18-1 -> 0.3392857143 | E19: =E18/D18-1 -> 0.6666666667 | F19: =F18/E18-1 -> 0.36 | G19: =G18/F18-1 -> 0.2411764706 | H19: 0.15 | I19: 0.13 | J19: 0.1 | K19: 0.085 | L19: 0.075
B20: Small | C20: =C16-C18 -> 421 | D20: 514 | E20: 767 | F20: 1000 | G20: 1149 | H20: 1294.15 | I20: 1439.3375 | J20: 1566.13593 | K20: 1689.918735 | L20: 1806.57679
B21: % growth | D21: =D20/C20-1 -> 0.2209026128 | E21: 0.4922178988 | F21: 0.3037809648 | G21: 0.149 | H21: 0.1263272411 | I21: 0.1121875362 | J21: 0.08809499509 | K21: 0.07903707608 | L21: 0.06903175481
B23: Large (>300k) | C23: 310 | D23: 437 | E23: 599 | F23: 852 | G23: 1080 | H23: =G23*(1+H24) -> 1069.2 | I23: =H23*(1+I24) -> 1101.276 | J23: =I23*(1+J24) -> 1156.3398 | K23: =J23*(1+K24) -> 1214.15679 | L23: =K23*(1+L24) -> 1274.86463
B24: % growth | D24: =D23/C23-1 -> 0.4096774194 | E24: =E23/D23-1 -> 0.3707093822 | F24: =F23/E23-1 -> 0.4223706177 | G24: =G23/F23-1 -> 0.2676056338 | H24: -0.01 | I24: 0.03 | J24: 0.05 | K24: 0.05 | L24: 0.05
B26: Enterprise/Direct ARPC | C26: =(C4*C5)/C18 -> 10639.70804 | D26: 11168.2008 | E26: 10113.20712 | F26: 10907.92612 | G26: 10373.67796 | H26: 9732.371729 | I26: 9162.029508 | J26: 8953.801565 | K26: 8912.539807 | L26: 8953.99348
B27: Digital ARPC | C27: =(C4*C6)/C20 -> 249.7514252 | D27: 265.28393 | E27: 246.2791525 | F27: 252.86556 | G27: 284.655309 | H27: 297.0598462 | I27: 295.9986105 | J27: =(J4*J6)/J20 -> 292.4363293 | K27: =(K4*K6)/K20 -> 292.6972971 | L27: =(L4*L6)/L20 -> 295.7003657
B31: S&M | C31: 539606 | D31: 591379 | E31: 798625 | F31: 1076527 | G31: 1242711 | H31: =H4*H32 -> 1235700 | I31: =I4*I32 -> 1248743.5 | J31: =J4*J32 -> 1263434.6 | K31: =K4*K32 -> 1279227.533 | L31: =L4*L32 -> 1289461.353
B32: S&M margin | C32: =C31/C4 -> 0.769800091 | D32: =D31/D4 -> 0.6071833761 | E32: =E31/E4 -> 0.5496209001 | F32: =F31/F4 -> 0.5108771633 | G32: =G31/G4 -> 0.4939399781 | H32: 0.45 | I32: 0.425 | J32: 0.4 | K32: 0.375 | L32: 0.35
B33: CAC (all) | D33: =D31/(D16-C16) -> 5280.169643 | E33: =E31/(E16-D16) -> 2635.726073 | F33: 3872.399281 | G33: 6540.584211 | H33: 6989.253394 | I33: 7065.746441 | J33: 8192.529945 | K33: =K31/(K16-J16) -> 8561.287744 | L33: =L31/(L16-K16) -> 9132.04026
B34: CAC (enterprise) | D34: =D31*D5/(D18-C18) -> 26767.68105 | E34: 13896.075 | F34: 21052.08356 | G34: 26369.72122 | H34: 33576.68246 | I34: 33846.65132 | J34: 39396.72689 | K34: 42662.23099 | L34: =L31*L5/(L18-K18) -> 44919.20062
B35: CAC (small) | D35: =D31*D6/(D20-C20) -> 890.247957 | E35: 410.3606719 | F35: 554.4345064 | G35: 1084.244497 | H35: 1191.8567 | I35: 1247.130831 | J35: 1444.797203 | K35: 1498.495633 | L35: =L31*L6/(L20-K20) -> 1602.734547
B37: International Revenue (%) | E37: 0.2 | F37: 0.23 | G37: 0.25
B40: Key Metric (Quarterely)
C41: FY22 | D41: FY22 | E41: FY22 | F41: FY22 | G41: FY23 | H41: FY23 | I41: FY23 | J41: FY23 | K41: FY24 | L41: FY24 | M41: FY24
C42: Q1 | D42: Q2 | E42: Q3 | F42: Q4 | G42: Q1 | H42: Q2 | I42: Q3 | J42: Q4 | K42: Q1 | L42: Q2 | M42: Q3 | N42: Q4low | O42: Q4high
B43: Dollar Net Retention | C43: 1.25 | D43: 1.24 | E43: 1.21 | F43: 1.19 | G43: 1.14 | H43: 1.1 | I43: 1.08 | J43: 1.07 | K43: 1.05 | L43: 1.02 | M43: 1
B44: Billings ($) | C44: 527 | D44: 595 | E44: 565 | F44: 670 | G44: 614 | H44: 648 | I44: 659 | J44: 739 | K44: 675 | L44: 711 | M44: 692 | N44: 758 | O44: 768
B45: Billings (Y/Y growth) | G45: =G44/C44-1 -> 0.165085389 | H45: 0.08907563025 | I45: 0.1663716814 | J45: 0.1029850746 | K45: 0.0993485342 | L45: 0.09722222222 | M45: =M44/I44-1 -> 0.05007587253
B46: Employees | C46: 6080 | D46: 6551 | E46: 7056 | F46: 7461 | G46: 7642 | H46: 8061 | I46: 7522 | J46: 7336 | K46: 6586 | L46: 6748 | M46: 6945 | N46: 6500
D47: =D46/C46-1 -> 0.07746710526 | E47: =E46/D46-1 -> 0.07708746756 | F47: 0.05739795918 | G47: 0.02425948264 | H47: 0.05482857891 | I47: -0.06686515321 | J47: -0.0247274661 | K47: -0.1022355507 | L47: 0.02459763134 | M47: 0.02919383521 | N47: -0.06407487401

Sheet Option_Value
B2: Valuing Options or Warrants
B3: Enter the current stock price = | E3: =DOCU_DCF!S57 -> 
B4: Enter the strike price on the option = | E4: 17.11
B5: Enter the expiration of the option = | E5: 3.6
B6: Enter the standard deviation in stock prices = | E6: 0.66 | F6: (volatility)
B7: Enter the annualized dividend yield on stock = | E7: 0
B8: Enter the treasury bond rate = | E8: =DOCU_DCF!F130 -> 0.04098
B9: Enter the number of options outstanding = | E9: =DOCU_DCF!I102 -> 2228
B10: Enter the number of shares outstanding = | E10: =DOCU_DCF!I101 -> 201904
B12: Circuit Breaker | C12: OFF
B14: Do not input any numbers below this line
B15: VALUING WARRANTS WHEN THERE IS DILUTION
B16: Stock Price= | D16: =E3 ->  | E16: # Warrants issued= | G16: =E9 -> 2228
B17: Strike Price= | D17: =E4 -> 17.11 | E17: # Shares outstanding= | G17: =E10 -> 201904
B18: Adjusted S = | D18: =(D16*G17+D29*G16)/(G17+G16) ->  | E18: T.Bond rate= | G18: =E8 -> 0.04098
B19: Adjusted K = | D19: =D17 -> 17.11 | E19: Variance= | G19: =E6^2 -> 0.4356
B20: Expiration (in years) = | D20: =E5 -> 3.6 | E20: Annualized dividend yield= | G20: =E7 -> 0
E21: Div. Adj. interest rate= | G21: =G18-G20 -> 0.04098
B23: d1 = | C23: =(LN(D18/D19)+(G21+(G19/2))*D20)/(((G19)^(0.5))*(D20^0.5)) -> 
B24: N (d1) = | C24: =NORMSDIST(C23) -> 
B26: d2 = | C26: =C23-((G19^0.5)*(D20^(0.5))) -> 
B27: N (d2) = | C27: =NORMSDIST(C26) -> 
B29: Value per option = | D29: =IF(C12="OFF",((EXP((0-G20)*D20))*D18*C24-D19*(EXP((0-G18)*D20))*C27),0) -> 
B30: Value of all options outstanding = | E30: =D29*E9 -> 

Sheet Scenario Summary
B2: Scenario Summary
D3: Current Values: | E3: Best_Case | F3: Base_Case | G3: Worse_Case
E4: Created by David Moore on 3/13/2024 | F4: Created by David Moore on 3/13/2024 | G4: Created by David Moore on 3/13/2024
B5: Changing Cells:
B6: Terminal Growth Rate | D6: 0.05 | E6: 0.05 | F6: 0.05 | G6: 0.025
B7: Exit Multiple | D7: 28.43 | E7: 28.43 | F7: 28.43 | G7: 20
B8: Default Spread | D8: 0.0221 | E8: 0.0174 | F8: 0.0221 | G8: 0.0361
B9: Equity Risk Premium | D9: 0.0418 | E9: 0.0418 | F9: 0.0418 | G9: 0.05
B10: Sales & Marketing (as a % of revenue) | D10: 0.35 | E10: 0.3 | F10: 0.35 | G10: 0.4
B11: G&A (as a % of revenue) | D11: 0.09 | E11: 0.08 | F11: 0.09 | G11: 0.12
B12: COGS-subscription (as a % of subscription) | D12: 0.17 | E12: 0.15 | F12: 0.17 | G12: 0.18
B13: Result Cells:
B14: Implied Equity Value per share (Perpetuity Growth) | D14: 53.78638449 | E14: 70.34028191 | F14: 53.78638449 | G14: 22.84199132
B15: Implied Equity Value per share (Exit Multiple) | D15: 72.38292412 | E15: 96.8304675 | F15: 72.38292412 | G15: 32.94373711
B16: Notes: Current Values column represents values of changing cells at
B17: time Scenario Summary Report was created. Changing cells for each
B18: scenario are highlighted in gray.

Sheet DOCU_IS
A4: Powered by Clearbit
A5: DocuSign Inc (NMS: DOCU)
A7: Exchange rate used is that of the Year End reported date
A10: As Reported Annual Income Statement | B10: =YEAR(B11) -> 2023 | C10: =YEAR(C11) -> 2022 | D10: =YEAR(D11) -> 2021 | E10: =YEAR(E11) -> 2020 | F10: =YEAR(F11) -> 2019
A11: Report Date | B11: 01/31/2023 | C11: 01/31/2022 | D11: 01/31/2021 | E11: 01/31/2020 | F11: 01/31/2019
A12: Currency | B12: USD | C12: USD | D12: USD | E12: USD | F12: USD
A13: Audit Status | B13: Not Qualified | C13: Not Qualified | D13: Not Qualified | E13: Not Qualified | F13: Not Qualified
A14: Consolidated | B14: Yes | C14: Yes | D14: Yes | E14: Yes | F14: Yes
A15: Scale | B15: Thousands | C15: Thousands | D15: Thousands | E15: Thousands | F15: Thousands
A16: Revenue - subscription | B16: 2442177 | C16: 2037272 | D16: 1381397 | E16: 918463 | F16: 663657
A17: Revenue - professional services & other revenue | B17: 73738 | C17: 69941 | D17: 71650 | E17: 55508 | F17: 37312
A18: Total revenue | B18: 2515915 | C18: 2107213 | D18: 1453047 | E18: 973971 | F18: 700969
A19: Cost of revenue - subscription | B19: 426077 | C19: 343661 | D19: 259992 | E19: 163931 | F19: 117764
A20: Cost of revenue - professional services & other cost of revenue | B20: 110011 | C20: 122790 | D20: 104066 | E20: 79303 | F20: 74657
A21: Total cost of revenue | B21: 536088 | C21: 466451 | D21: 364058 | E21: 243234 | F21: 192421
A22: Gross profit | B22: 1979827 | C22: 1640762 | D22: 1088989 | E22: 730737 | F22: 508548
A23: Sales & marketing expense | B23: 1242711 | C23: 1076527 | D23: 798625 | E23: 591379 | F23: 539606
A24: Research & development expense | B24: 480584 | C24: 393362 | D24: 271522 | E24: 185552 | F24: 185968
A25: General & administrative expense | B25: 316228 | C25: 232757 | D25: 192697 | E25: 147315 | F25: 209297
A26: Restructuring & other related charges | B26: 28335 | C26: - | D26: - | E26: - | F26: -
A27: Total operating expenses | B27: 2067858 | C27: 1702646 | D27: 1262844 | E27: 924246 | F27: 934871
A28: Income (loss) from operations | B28: -88031 | C28: -61884 | D28: -173855 | E28: -193509 | F28: -426323
A29: Interest expense | B29: 6389 | C29: 6443 | D29: 30799 | E29: 29254 | F29: 10844
A30: Gain (loss) on extinguishment of debt | B30: - | C30: - | D30: -33752 | E30: - | F30: -
A31: Interest income & other income (expense), net | B31: 4539 | C31: 1413 | D31: 8914 | E31: 19207 | F31: 8959
A32: Income before income taxes - U.S. | B32: 19673 | C32: -93356 | D32: -240175 | E32: -228476 | F32: -460627
A33: Income before income taxes - international | B33: -109554 | C33: 26442 | D33: 10683 | E33: 24920 | F33: 32419
A34: Income (loss) before provision for (benefit from) income taxes | B34: -89881 | C34: -66914 | D34: -229492 | E34: -203556 | F34: -428208
A35: Current federal income taxes | B35: -464 | C35: -931 | D35: -35 | E35: - | F35: -
A36: Current state income taxes | B36: 1666 | C36: -108 | D36: 269 | E36: 239 | F36: 413
A37: Current foreign income taxes | B37: 4674 | C37: 3407 | D37: 15951 | E37: 3277 | F37: 2838
A38: Current income taxes | B38: 5876 | C38: 2368 | D38: 16185 | E38: 3516 | F38: 3251
A39: Deferred federal income taxes | B39: 21 | C39: 213 | D39: -243 | E39: - | F39: -7083
A40: Deferred state income taxes | B40: -21 | C40: 184 | D40: 5 | E40: -43 | F40: -2
A41: Deferred foreign income taxes | B41: 1697 | C41: 297 | D41: -2172 | E41: 1330 | F41: 2084
A42: Deferred income taxes | B42: 1697 | C42: 694 | D42: -2410 | E42: 1287 | F42: -5001
A43: Provision for (benefit from) income taxes | B43: 7573 | C43: 3062 | D43: 13775 | E43: 4803 | F43: -1750
A44: Net income (loss) | B44: -97454 | C44: -69976 | D44: -243267 | E44: -208359 | F44: -426458
A45: Less: preferred stock accretion | B45: - | C45: - | D45: - | E45: - | F45: 353
A46: Net income (loss) attributable to common stockholders | B46: -97454 | C46: -69976 | D46: -243267 | E46: -208359 | F46: -426811
A47: Weighted average shares outstanding - basic | B47: 200903 | C47: 196675 | D47: 185760 | E47: 176704 | F47: 135163
A48: Weighted average shares outstanding - diluted | B48: 200903 | C48: 196675 | D48: 185760 | E48: 176704 | F48: 135163
A49: Year end shares outstanding | B49: 201904 | C49: 198834 | D49: 192807 | E49: 181254 | F49: 169303
A50: Net earnings (loss) per share - basic | B50: -0.49 | C50: -0.36 | D50: -1.31 | E50: -1.18 | F50: -3.16
A51: Net earnings (loss) per share - diluted | B51: -0.49 | C51: -0.36 | D51: -1.31 | E51: -1.18 | F51: -3.16
A52: Total number of employees | B52: 7336 | C52: 7461 | D52: 5630 | E52: 3909 | F52: 3023
A53: Number of common stockholders | B53: 78 | C53: 73 | D53: 104 | E53: 115 | F53: 248
A54: Foreign currency translation adjustments | B54: -15336 | C54: -7935 | D54: 7468 | E54: - | F54: -
A57: For Model
A58: Depreciation and amortization | B58: 86255 | C58: 81913 | D58: 71090 | E58: 50182 | F58: 38027
A59: Capex | B59: -77654 | C59: -61396 | D59: -82395 | E59: -72046 | F59: -30413
A60: Amortization of deferred contract acquisition & fulfillment costs | B60: 185045 | C60: 144442 | D60: 99384 | E60: 69747 | F60: 42112

Sheet DOCU_BS
A4: Powered by Clearbit
A5: DocuSign Inc (NMS: DOCU)
A7: Exchange rate used is that of the Year End reported date
A10: As Reported Annual Balance Sheet | B10: =YEAR(B11) -> 2023 | C10: =YEAR(C11) -> 2022 | D10: =YEAR(D11) -> 2021 | E10: =YEAR(E11) -> 2020 | F10: =YEAR(F11) -> 2019
A11: Report Date | B11: 01/31/2023 | C11: 01/31/2022 | D11: 01/31/2021 | E11: 01/31/2020 | F11: 01/31/2019
A12: Currency | B12: USD | C12: USD | D12: USD | E12: USD | F12: USD
A13: Audit Status | B13: Not Qualified | C13: Not Qualified | D13: Not Qualified | E13: Not Qualified | F13: Not Qualified
A14: Consolidated | B14: Yes | C14: Yes | D14: Yes | E14: Yes | F14: Yes
A15: Scale | B15: Thousands | C15: Thousands | D15: Thousands | E15: Thousands | F15: Thousands
A16: Cash & cash equivalents | B16: 721895 | C16: 509059 | D16: 566055 | E16: 241203 | F16: 517811
A17: Investments | B17: 309771 | C17: 293763 | D17: 207450 | E17: 414939 | F17: 251203
A18: Restricted cash | B18: - | C18: - | D18: - | E18: 280 | F18: 367
A19: Accounts receivable, gross | B19: 522925 | C19: 446757 | D19: 328932 | E19: 240841 | F19: 175148
A20: Allowance for doubtful accounts | B20: 6011 | C20: 5807 | D20: 5362 | E20: 3000 | F20: 600
A21: Accounts receivable, net | B21: 516914 | C21: 440950 | D21: 323570 | E21: 237841 | F21: 174548
A22: Contract assets - current | B22: 12437 | C22: 12588 | D22: 16883 | E22: 12502 | F22: 10616
A23: Prepaid expenses | B23: - | C23: - | D23: - | E23: 24429 | F23: 18415
A24: Other current assets | B24: - | C24: - | D24: - | E24: 12696 | F24: 11561
A25: Prepaid expenses & other current assets | B25: 69987 | C25: 63236 | D25: 48390 | E25: 37125 | F25: 29976
A26: Total current assets | B26: 1631004 | C26: 1319596 | D26: 1162348 | E26: 943890 | F26: 984521
A27: Investments - noncurrent | B27: 186049 | C27: 94938 | D27: 92717 | E27: 239729 | F27: 164220
A28: Computer & network equipment | B28: 138869 | C28: 127799 | D28: 102163 | E28: 66937 | F28: 55233
A29: Software, including capitalized software development costs | B29: 114524 | C29: 82537 | D29: 56858 | E29: 33373 | F29: 27959
A30: Furniture & office equipment | B30: 20897 | C30: 20939 | D30: 21682 | E30: 16752 | F30: 9511
A31: Leasehold improvements | B31: 73415 | C31: 79811 | D31: 79892 | E31: 59564 | F31: 41464
A32: Total property & equipment, gross | B32: 347705 | C32: 311086 | D32: 260595 | E32: 176626 | F32: 134167
A33: Less: accumulated depreciation | B33: 210781 | C33: 170261 | D33: 121029 | E33: 81228 | F33: 66479
A34: Work in progress | B34: 62968 | C34: 43839 | D34: 25473 | E34: 32895 | F34: 8144
A35: Property & equipment, net | B35: 199892 | C35: 184664 | D35: 165039 | E35: 128293 | F35: 75832
A36: Operating lease right-of-use assets | B36: 141493 | C36: 126021 | D36: 159352 | E36: 149833 | F36: -
A37: Goodwill | B37: 353619 | C37: 355058 | D37: 350151 | E37: 194882 | F37: 195225
A38: Intangible assets, net | B38: 70280 | C38: 98816 | D38: 121828 | E38: 56500 | F38: 74203
A39: Deferred contract acquisition costs - noncurrent | B39: 350899 | C39: 311835 | D39: 260130 | E39: 153333 | F39: 112583
A40: Other assets - noncurrent | B40: 79484 | C40: 50337 | D40: 24942 | E40: 24678 | F40: 8833
A41: Total assets | B41: 3012720 | C41: 2541265 | D41: 2336507 | E41: 1891138 | F41: 1615417
A42: Accounts payable | B42: 24393 | C42: 52804 | D42: 37367 | E42: 28144 | F42: 19590
A43: Accrued expenses | B43: - | C43: - | D43: - | E43: - | F43: 21755
A44: Deferred rent-current | B44: - | C44: - | D44: - | E44: - | F44: 2452
A45: Accrued expenses | B45: - | C45: - | D45: - | E45: 39350 | F45: -
A46: Other current liabilities | B46: - | C46: - | D46: - | E46: 14994 | F46: -
A47: Accrued expenses & other current liabilities | B47: 100987 | C47: 91377 | D47: 66566 | E47: 54344 | F47: -
A48: Accrued compensation | B48: 163133 | C48: 160163 | D48: 156158 | E48: 83189 | F48: 77553
A49: Convertible senior notes - current | B49: 722887 | D49: 20469
A50: Contract liabilities-current | B50: 1172867 | C50: 1029891 | D50: 779642 | E50: 507560 | F50: 381060
A51: Operating lease liabilities-current | B51: 24055 | C51: 37404 | D51: 32971 | E51: 20728
A52: Other liabilities - current | B52: - | C52: - | D52: - | E52: - | F52: 13903
A53: Total current liabilities | B53: 2208322 | C53: 1371639 | D53: 1093173 | E53: 693965 | F53: 516313
A54: Convertible senior notes, net - noncurrent | B54: - | C54: 718487 | D54: 693219 | E54: 465321 | F54: 438932
A55: Contract liabilities - noncurrent | B55: 16925 | C55: 16725 | D55: 16492 | E55: 11478 | F55: 7712
A56: Operating lease liabilities-noncurrent | B56: 141348 | C56: 126340 | D56: 165704 | E56: 162432 | F56: -
A57: Deferred rent - noncurrent | B57: - | C57: - | D57: - | E57: - | F57: 24195
A58: Deferred tax liability - noncurrent | B58: 10723 | C58: 9316 | D58: 6464 | E58: 4920 | F58: 4207
A59: Other liabilities - noncurrent | B59: 18115 | C59: 23255 | D59: 32328 | E59: 6695 | F59: 9696
A60: Total liabilities | B60: 2395433 | C60: 2265762 | D60: 2007380 | E60: 1344811 | F60: 1001055
A61: Convertible senior notes | B61: - | C61: - | D61: 3390 | E61: - | F61: -
A62: Common stock | B62: 20 | C62: 20 | D62: 19 | E62: 18 | F62: 17
A63: Treasury stock, at cost | B63: 1785 | C63: 1532 | D63: 1048 | E63: - | F63: -
A64: Additional paid-in capital | B64: 2240732 | C64: 1720013 | D64: 1702254 | E64: 1685167 | F64: 1545088
A65: Accumulated other comprehensive income (loss) | B65: -22996 | C65: -4809 | D65: 4964 | E65: -1673 | F65: -1965
A66: Retained earnings (accumulated deficit) | B66: -1598684 | C66: -1438189 | D66: -1380452 | E66: -1137185 | F66: -928778
A67: Total stockholders' equity (deficit) | B67: 617287 | C67: 275503 | D67: 325737 | E67: 546327 | F67: 614362

Sheet DOCU_CFS
A4: Powered by Clearbit
A5: DocuSign Inc (NMS: DOCU)
A7: Exchange rate used is that of the Year End reported date
A10: As Reported Annual Cash Flow
A11: Report Date | B11: 01/31/2023 | C11: 01/31/2022 | D11: 01/31/2021 | E11: 01/31/2020 | F11: 01/31/2019
A12: Currency | B12: USD | C12: USD | D12: USD | E12: USD | F12: USD
A13: Audit Status | B13: Not Qualified | C13: Not Qualified | D13: Not Qualified | E13: Not Qualified | F13: Not Qualified
A14: Consolidated | B14: Yes | C14: Yes | D14: Yes | E14: Yes | F14: Yes
A15: Scale | B15: Thousands | C15: Thousands | D15: Thousands | E15: Thousands | F15: Thousands
A16: Net income (loss) | B16: -97454 | C16: -69976 | D16: -243267 | E16: -208359 | F16: -426458
A17: Depreciation & amortization expense | B17: 86255 | C17: 81913 | D17: 71090 | E17: 50182 | F17: 38027
A18: Amortization of deferred contract acquisition & fulfillment costs | B18: 185045 | C18: 144442 | D18: 99384 | E18: 69747 | F18: 42112
A19: Amortization of debt discount & transaction costs | B19: 4970 | C19: 5098 | D19: 28001 | E19: 26389 | F19: 9507
A20: Loss (gain) on extinguishment of debt | B20: - | C20: - | D20: 33752 | E20: - | F20: -
A21: Operating cash flow related to repayments of convertible senior notes | B21: - | C21: - | D21: -75165 | E21: - | F21: -
A22: Non-cash operating lease costs | B22: 27501 | C22: 26819 | D22: 26728 | E22: 19435 | F22: -
A23: Stock-based compensation expense | B23: 538726 | C23: 408542 | D23: 286877 | E23: 206404 | F23: 410978
A24: Deferred income taxes | B24: 1697 | C24: 1369 | D24: -2410 | E24: 1287 | F24: -5001
A25: Other adjustments | B25: 15723 | C25: 9871 | D25: -210 | E25: -1741 | F25: 800
A26: Accounts receivable | B26: -75964 | C26: -117380 | D26: -73913 | E26: -63293 | F26: -42571
A27: Contract assets | B27: - | C27: 4893 | D27: 1912 | E27: -1508 | F27: 4204
A28: Prepaid expenses & other current assets | B28: -5038 | C28: -7074 | D28: -1155 | E28: -3142 | F28: -3283
A29: Deferred contract acquisition & fulfillment costs | B29: -232315 | C29: -207393 | D29: -208510 | E29: -115723 | F29: -80869
A30: Other assets | B30: -22319 | C30: -16389 | D30: -6006 | E30: 1538 | F30: 2658
A31: Accounts payable | B31: -26440 | C31: 12148 | D31: 12128 | E31: 3849 | F31: -7380
A32: Accrued expenses & other liabilities | B32: 7340 | C32: 10828 | D32: 37155 | E32: 9353 | F32: -
A33: Accrued expenses | B33: - | C33: - | D33: - | E33: - | F33: 4214
A34: Accrued compensation | B34: -1781 | C34: 1128 | D34: 64586 | E34: 5636 | F34: 26039
A35: Contract liabilities | B35: 143177 | C35: 250482 | D35: 267750 | E35: 130266 | F35: 100874
A36: Operating lease liabilities | B36: -42364 | C36: -32854 | D36: -21773 | E36: -14624 | F36: -
A37: Deferred rent | B37: - | C37: - | D37: - | E37: - | F37: 1845
A38: Other liabilities | B38: - | C38: - | D38: - | E38: - | F38: 390
A39: Net cash flows from operating activities | B39: 506759 | C39: 506467 | D39: 296954 | E39: 115696 | F39: 76086
A40: Cash paid for acquisition, net of acquired cash | B40: - | C40: -6388 | D40: -180370 | E40: - | F40: -218779
A41: Purchases of marketable securities | B41: -533710 | C41: -384128 | D41: -164989 | E41: -861252 | F41: -
A42: Sales of marketable securities | B42: - | C42: 7569 | D42: 28986 | E42: - | F42: -
A43: Maturities of marketable securities | B43: 423917 | C43: 283184 | D43: 488538 | E43: 627309 | F43: -
A44: Purchases of strategic investments | B44: -3750 | C44: -1750 | D44: -5300 | E44: -15500 | F44: -
A45: Purchases of other investments | B45: - | C45: - | D45: -3241 | E45: - | F45: -415132
A46: Purchases of property & equipment | B46: -77654 | C46: -61396 | D46: -82395 | E46: -72046 | F46: -30413
A47: Net cash flows from investing activities | B47: -191197 | C47: -162909 | D47: 81229 | E47: -321489 | F47: -664324
A48: Proceeds from issuance of convertible senior notes, net of initial purchasers' discounts & transaction costs | B48: - | C48: - | D48: 677370 | E48: - | F48: 560756
A49: Purchase of capped calls related to issuance of convertible senior notes | B49: - | C49: - | D49: -31395 | E49: - | F49: -67563
A50: Repayments of convertible senior notes | B50: -16 | C50: -77906 | D50: -384199 | E50: - | F50: -
A51: Repurchases of common stock | B51: -63041 | C51: - | D51: - | E51: - | F51: -
A52: Payment of revolving credit facility costs | B52: - | C52: - | D52: -2453 | E52: - | F52: -
A53: Proceeds from issuance of common stock in initial public offering, net of underwriting commissions | B53: - | C53: - | D53: - | E53: - | F53: 529305
A54: Payment of tax withholding obligation on RSU settlement | B54: - | C54: - | D54: - | E54: -166504 | F54: -215332
A55: Payment of tax withholding obligation on restricted stock units settlement & employee stock purchase plan purchase | B55: -84403 | C55: -386521 | D55: -372463 | E55: - | F55: -
A56: Proceeds from the exercise of stock options | B56: 12678 | C56: 23729 | D56: 24305 | E56: 72177 | F56: 50211
A57: Proceeds from employee stock purchase plan | B57: 36526 | C57: 46077 | D57: 29859 | E57: 23872 | F57: -
A58: Payment of deferred offering costs | B58: - | C58: - | D58: - | E58: - | F58: -4011
A59: Other financing | B59: - | C59: - | D59: - | E59: - | F59: -250
A60: Net cash flows from financing activities | B60: -98256 | C60: -394621 | D60: -58976 | E60: -70455 | F60: 853116
A61: Effect of foreign exchange on cash, cash equivalents & restricted cash | B61: -3784 | C61: -5594 | D61: 5646 | E61: -447 | F61: -4136
A62: Net increase (decrease) in cash, cash equivalents & restricted cash | B62: 213522 | C62: -56657 | D62: 324853 | E62: -276695 | F62: 260742
A63: Cash, cash equivalents & restricted cash at beginning of period | B63: 509679 | C63: 566336 | D63: 241483 | E63: 518178 | F63: 257436
A64: Cash, cash equivalents & restricted cash at end of period | B64: 723201 | C64: 509679 | D64: 566336 | E64: 241483 | F64: 518178
A65: Cash paid for interest | B65: 185 | C65: 349 | D65: 78040 | E65: 2852 | F65: 204
A66: Cash paid for income taxes | B66: 10416 | C66: 6940 | D66: 3503 | E66: 1970 | F66: 3213

Sheet DOCU_LTM
B2: LTM Calculations For | C2: DOCU
C4: Fiscal year ended | E4: X-Months Ended | H4: LTM
C5: 2024-01-31 | H5: 2024-01-31
B6: Revenues | C6: 2761.9 | H6: =E6+C6-F6 -> 2761.9
B7: EBIT | C7: 62.7 | H7: =E7+C7-F7 -> 62.7
B8: EBITDA | C8: 122.7 | H8: =E8+C8-F8 -> 122.7
H10: As of
H11: 2024-01-31
B12: Net debt | H12: =22.1+120.8-1045.5-135.2 -> -1037.8
B13: Preferred stock | H13: 0
B14: Non-controlling Interest | H14: 0

Sheet CRM_LTM
B2: LTM Calculations For | C2: CRM
C4: Fiscal year ended | E4: X-Months Ended | H4: LTM
C5: 2024-01-31 | H5: 2024-01-31
B6: Revenues | C6: 34857 | H6: =E6+C6-F6 -> 34857
B7: EBIT | C7: 5999 | H7: =E7+C7-F7 -> 5999
B8: EBITDA | C8: 9221 | H8: =E8+C8-F8 -> 9221
H10: As of
H11: 2024-01-31
B12: Net debt | H12: =8427+3246+999+890-14194-4848 -> -5480
B13: Preferred stock | H13: 0
B14: Non-controlling Interest | H14: 0

Sheet RNG_LTM
B2: LTM Calculations For | C2: RNG
C4: Fiscal year ended | E4: X-Months Ended | H4: LTM
C5: 2023-12-31 | H5: 2023-12-31
B6: Revenues | C6: 2202.4 | H6: =E6+C6-F6 -> 2202.4
B7: EBIT | C7: -179.3 | H7: =E7+C7-F7 -> -179.3
B8: EBITDA | C8: 54.6 | H8: =E8+C8-F8 -> 54.6
H10: As of
H11: 2023-12-31
B12: Net debt | H12: =1374.19-3.5 -> 1370.69
B13: Preferred stock | H13: 199.4
B14: Non-controlling Interest | H14: 0

Sheet ZM_LTM
B2: LTM Calculations For | C2: ZM
C4: Fiscal year ended | E4: X-Months Ended | H4: LTM
C5: 2024-01-31 | H5: 2024-01-31
B6: Revenues | C6: 4527.2 | H6: =E6+C6-F6 -> 4527.2
B7: EBIT | C7: 598.3 | H7: =E7+C7-F7 -> 598.3
B8: EBITDA | C8: 702.7 | H8: =E8+C8-F8 -> 702.7
H10: As of
H11: 2024-01-31
B12: Net debt | H12: =-6962.49-409.2 -> -7371.69
B13: Preferred stock | H13: 0
B14: Non-controlling Interest | H14: 0

Sheet AZPN_LTM
B2: LTM Calculations For | C2: AZPN
C4: Fiscal year ended | E4: 6-Months Ended | H4: LTM
C5: 2023-06-30 | E5: 2023-12-31 | F5: 2022-12-31 | H5: 2023-12-31
B6: Revenues | C6: 1044.2 | E6: 506.47 | F6: 493.66 | H6: =E6+C6-F6 -> 1057.01
B7: EBIT | C7: -183.1 | E7: -109.46 | F7: -110.58 | H7: =E7+C7-F7 -> -181.98
B8: EBITDA | C8: 308.4 | E8: =E7+246.386 -> 136.926 | F8: =F7+245.102 -> 134.522 | H8: =E8+C8-F8 -> 310.804
H10: As of
H11: 2023-12-31
B12: Net debt | H12: 62.73
B13: Preferred stock | H13: 0
B14: Non-controlling Interest | H14: 0

Sheet INFA_LTM
B2: LTM Calculations For | C2: INFA
C4: Fiscal year ended | E4: X-Months Ended | H4: LTM
C5: 2023-12-31 | H5: 2023-12-31
B6: Revenues | C6: 1595.2 | H6: =E6+C6-F6 -> 1595.2
B7: EBIT | C7: 93.3 | H7: =E7+C7-F7 -> 93.3
B8: EBITDA | C8: 248.3 | H8: =E8+C8-F8 -> 248.3
H10: As of
H11: 2023-12-31
B12: Net debt | H12: 894.85
B13: Preferred stock | H13: 0
B14: Non-controlling Interest | H14: 0

Sheet PAYC_LTM
B2: LTM Calculations For | C2: PAYC
C4: Fiscal year ended | E4: X-Months Ended | H4: LTM
C5: 2023-12-31 | H5: 2023-12-31
B6: Revenues | C6: 1693.7 | H6: =E6+C6-F6 -> 1693.7
B7: EBIT | C7: 451.3 | H7: =E7+C7-F7 -> 451.3
B8: EBITDA | C8: 503.4 | H8: =E8+C8-F8 -> 503.4
H10: As of
H11: 2023-12-31
B12: Net debt | H12: -218.08
B13: Preferred stock | H13: 0
B14: Non-controlling Interest | H14: 0

Sheet DBX_LTM
B2: LTM Calculations For | C2: DBX
C4: Fiscal year ended | E4: X-Months Ended | H4: LTM
C5: 2023-12-31 | H5: 2023-12-31
B6: Revenues | C6: 2501.6 | H6: =E6+C6-F6 -> 2501.6
B7: EBIT | C7: 383.5 | H7: =E7+C7-F7 -> 383.5
B8: EBITDA | C8: 553.5 | H8: =E8+C8-F8 -> 553.5
H10: As of
H11: 2023-12-31
B12: Net debt | H12: 674.6
B13: Preferred stock | H13: 0
B14: Non-controlling Interest | H14: 0

Sheet TWLO_LTM
B2: LTM Calculations For | C2: TWLO
C4: Fiscal year ended | E4: X-Months Ended | H4: LTM
C5: 2023-12-31 | H5: 2023-12-31
B6: Revenues | C6: 4153.9 | H6: =E6+C6-F6 -> 4153.9
B7: EBIT | C7: -384.7 | H7: =E7+C7-F7 -> -384.7
B8: EBITDA | C8: -100.3 | H8: =E8+C8-F8 -> -100.3
H10: As of
H11: 2023-12-31
B12: Net debt | H12: -2834.72
B13: Preferred stock | H13: 0
B14: Non-controlling Interest | H14: 0

Sheet ADBE_LTM
B2: LTM Calculations For | C2: ADBE
C4: Fiscal year ended | E4: 3-Months Ended | H4: LTM
C5: 2023-12-01 | E5: 2024-03-01 | F5: 2023-03-01 | H5: 2024-03-01
B6: Revenues | C6: 19409 | E6: 5182 | F6: 4655 | H6: =E6+C6-F6 -> 19936
B7: EBIT | C7: 6650 | E7: 1907 | F7: 1586 | H7: =E7+C7-F7 -> 6971
B8: EBITDA | C8: 7268 | E8: =E7+212 -> 2119 | F8: =F7+212 -> 1798 | H8: =E8+C8-F8 -> 7589
H10: As of
H11: 2024-03-01
B12: Net debt | H12: -2734
B13: Preferred stock | H13: 0
B14: Non-controlling Interest | H14: 0
